Workbook

Sheet Potteplanter under 10.000
A6: Gartneriet Blomst
A8: REGNSKABSSAMMENDRAG - POTTEPLANTEGARTNERIER MED UNDER 10.000 KVM.
A11: RESULTATOPGØRELSE
C13: Gennemsnit pr. gartneri | G13: Forskel | M13: Gennemsnit pr. kvm.
C14: (I 1.000 DKK) | G14: (i %) | I14: Index | M14: (DKK)
C15: u/10.000 | D15: Best Prac | E15: 2018 | I15: =+C15 -> u/10.000 | J15: =+D15 -> Best Prac | K15: =+E15 -> 2018 | M15: =+C15 -> u/10.000 | N15: =+D15 -> Best Prac | O15: =E15 -> 2018
A17: Areal i gns. | M17: =C122 -> 5430.7 | N17: =D122 -> 35219.1 | O17: =E122 -> 0
A19: OMSÆTNING | C19: 3008.9 | D19: 28921.1 | E19: 0 | G19: =+(E19-D19)/D19 -> -1 | I19: =+C19*100/C19 -> 100 | J19: =+D19*100/D19 -> 100 | K19: =+E19*100/E19 ->  | M19: =+C19*1000/M$17 -> 554.0538052 | N19: 821.1765775
A20: Salgsomkostninger | C20: -365.2 | D20: -1895.1 | E20: 0 | G20: =+(E20-D20)/D20 -> -1 | I20: =+C20*100/C$19 -> -12.13732593 | J20: =+D20*100/D$19 -> -6.552655328 | K20: =+E20*100/E$19 ->  | M20: -67.24731618 | N20: -53.80887075
A22: NETTOOMSÆTNING | C22: 2643.7 | D22: 27026 | E22: =SUM(E19:E21) -> 0 | G22: =IF(+D22<0,(-D22+E22)/-D22,(-D22+E22)/D22) -> -1 | I22: =SUM(I19:I21) -> 87.86267407 | J22: =SUM(J19:J21) -> 93.44734467 | K22: =SUM(K19:K21) ->  | M22: =SUM(M19:M21) -> 486.806489 | N22: =SUM(N19:N21) -> 767.3677067 | O22: =SUM(O19:O21) -> 
A24: Produktionsløn | C24: -894.8 | D24: -6461 | E24: 0 | G24: =+(E24-D24)/D24 -> -1 | I24: =+C24*100/C$19 -> -29.73844262 | J24: -22.3400908 | M24: =+C24*1000/M$17 -> -164.766973 | N24: -183.451593
A25: Produktionsomkostninger | C25: -610.5 | D25: -10349.5 | E25: 0 | G25: =+(E25-D25)/D25 -> -1 | I25: -20.28980691 | J25: -35.78529171 | M25: -112.4164472 | N25: -293.8604337
C26: 1138.4 | D26: 10215.5 | E26: =SUM(E22:E25) -> 0 | G26: =IF(+D26<0,(-D26+E26)/-D26,(-D26+E26)/D26) -> -1 | I26: =SUM(I22:I25) -> 37.83442454 | J26: =SUM(J22:J25) -> 35.32196217 | K26: =SUM(K22:K25) ->  | M26: =SUM(M22:M25) -> 209.6230688 | N26: =SUM(N22:N25) -> 290.05568 | O26: =SUM(O22:O25) -> 
A28: Energiomkostninger | C28: -311.6 | D28: -2501.4 | E28: 0 | G28: =+(E28-D28)/D28 -> -1 | I28: =+C28*100/C$19 -> -10.35594403 | J28: =+D28*100/D$19 -> -8.649048618 | K28: =+E28*100/E$19 ->  | M28: =+C28*1000/M$17 -> -57.37750198 | N28: =+D28*1000/N$17 -> -71.02396143 | O28: =+E28*1000/O$17 -> 
A30: DÆKNINGSBIDRAG | C30: 826.8 | D30: 7714.1 | E30: =SUM(E26:E29) -> 0 | G30: =IF(+D30<0,(-D30+E30)/-D30,(-D30+E30)/D30) -> -1 | I30: =SUM(I26:I29) -> 27.47848051 | J30: =SUM(J26:J29) -> 26.67291355 | K30: =SUM(K26:K29) ->  | M30: =SUM(M26:M29) -> 152.2455669 | N30: =SUM(N26:N29) -> 219.0317186 | O30: =SUM(O26:O29) -> 
A32: Kapacitetsomkostninger | C32: -451.1 | D32: -3355.3 | E32: 0 | G32: =+(E32-D32)/D32 -> -1 | I32: =+C32*100/C$19 -> -14.99218984 | J32: =+D32*100/D$19 -> -11.60156426 | K32: =+E32*100/E$19 ->  | M32: =+C32*1000/M$17 -> -83.06479828 | N32: =+D32*1000/N$17 -> -95.26932829 | O32: =+E32*1000/O$17 -> 
A34: RES. FØR AFSKRIVNINGER
A35: - EBITDA | C35: 375.7 | D35: 4358.8 | E35: =SUM(E30:E33) -> 0 | G35: =IF(+D35<0,(-D35+E35)/-D35,(-D35+E35)/D35) -> -1 | I35: =SUM(I30:I33) -> 12.48629067 | J35: =SUM(J30:J33) -> 15.07134929 | K35: =SUM(K30:K33) ->  | M35: =SUM(M30:M33) -> 69.18076859 | N35: =SUM(N30:N33) -> 123.7623903 | O35: =SUM(O30:O33) -> 
A37: Afskrivninger | C37: -146 | D37: -1322.8 | E37: 0 | G37: =+(E37-D37)/D37 -> -1 | I37: =+C37*100/C$19 -> -4.852271594 | J37: =+D37*100/D$19 -> -4.573823264 | K37: =+E37*100/E$19 ->  | M37: =+C37*1000/M$17 -> -26.88419541 | N37: =+D37*1000/N$17 -> -37.55916534 | O37: =+E37*1000/O$17 -> 
A39: DRIFTSRESULTAT - EBIT | C39: 229.7 | D39: 3036 | E39: =SUM(E35:E38) -> 0 | G39: =IF(+D39<0,(-D39+E39)/-D39,(-D39+E39)/D39) -> -1 | I39: =SUM(I35:I38) -> 7.634019077 | J39: =SUM(J35:J38) -> 10.49752603 | K39: =SUM(K35:K38) ->  | M39: =SUM(M35:M38) -> 42.29657319 | N39: =SUM(N35:N38) -> 86.20322495 | O39: =SUM(O35:O38) -> 
A41: Finansiering, netto | C41: -56.4 | D41: -234.2 | E41: 0 | G41: =+(E41-D41)/D41 -> -1 | I41: =+C41*100/C$19 -> -1.874439164 | J41: =+D41*100/D$19 -> -0.8097893925 | K41: =+E41*100/E$19 ->  | M41: =+C41*1000/M$17 -> -10.38540151 | N41: =+D41*1000/N$17 -> -6.649800818 | O41: =+E41*1000/O$17 -> 
A43: RESULTAT PRIMÆR DRIFT | C43: 173.3 | D43: 2801.8 | E43: =SUM(E39:E42) -> 0 | G43: =IF(+D43<0,(-D43+E43)/-D43,(-D43+E43)/D43) -> -1 | I43: =SUM(I39:I42) -> 5.759579913 | J43: =SUM(J39:J42) -> 9.687736635 | K43: =SUM(K39:K42) ->  | M43: =SUM(M39:M42) -> 31.91117167 | N43: =SUM(N39:N42) -> 79.55342414 | O43: =SUM(O39:O42) -> 
A45: SUPPL. OPLYSNINGER
A46: Indeholdt i kapacitetsomk.:
A47: Indirekte løn (t.kr.) | C47: 116 | D47: 1086.6 | E47: 0 | G47: =+(E47-D47)/D47 -> -1 | I47: =+C47*100/C$19 -> 3.855229486 | J47: 3.757118505 | M47: =+C47*1000/M$17 -> 21.36004567 | N47: 30.85257715
A48: Reparation/vedligeholdelse | C48: 147.5 | D48: 1096.5 | E48: 0 | G48: =+(E48-D48)/D48 -> -1 | I48: 4.9021237 | J48: 3.791349568 | M48: 27.16040289 | N48: 31.13367463
A50: Udgiftsført indehaverløn | C50: 289.4 | D50: 347.4 | E50: 0
A53: BALANCE
C55: Gennemsnit pr. gartneri | G55: Forskel | M55: Gennemsnit pr. kvm.
C56: (I 1.000 DKK) | G56: (i %) | I56: Index | M56: (DKK)
C57: =+C15 -> u/10.000 | D57: =+D15 -> Best Prac | E57: =+E15 -> 2018 | I57: =+C57 -> u/10.000 | J57: =+D57 -> Best Prac | K57: =+E57 -> 2018 | M57: =+C57 -> u/10.000 | N57: =+D57 -> Best Prac | O57: =+E57 -> 2018
A59: AKTIVER
A60: Anlægsaktiver | C60: 1832.6 | D60: 10080.3 | E60: 0 | G60: =+(E60-D60)/D60 -> -1 | I60: =+C60*100/C$63 -> 59.8380461 | J60: 45.37936561 | M60: =+C60*1000/C$117 -> 337.4518939 | N60: 385.4430743
A61: Omsætningsaktiver | C61: 1230 | D61: 12133.1 | E61: 0 | G61: =+(E61-D61)/D61 -> -1 | I61: 40.1619539 | J61: 54.62063439 | M61: 226.4901394 | N61: 463.9365261
A63: AKTIVER I ALT | C63: 3062.6 | D63: 22213.4 | E63: =SUM(E60:E62) -> 0 | G63: =+(E63-D63)/D63 -> -1 | I63: =SUM(I60:I62) -> 100 | J63: =SUM(J60:J62) -> 100 | K63: =SUM(K60:K62) ->  | M63: =SUM(M60:M62) -> 563.9420333 | N63: =SUM(N60:N62) -> 849.3796004 | O63: =SUM(O60:O62) -> 
A65: PASSIVER
A66: Egenkapital | C66: 1205.3 | D66: 11067.3 | E66: 0 | G66: =IF(+D66<0,(-D66+E66)/-D66,(-D66+E66)/D66) -> -1 | I66: =+C66*100/C$63 -> 39.35544962 | J66: 49.82262958 | K66: =+E66*100/E$63 ->  | M66: =+C66*1000/C$117 -> 221.9419228 | N66: 423.1832521
A67: Hensatte forpligtelser | C67: 134.6 | D67: 674.4 | E67: 0 | G67: =+(E67-D67)/D67 -> -1 | I67: 4.394958532 | J67: 3.036005294 | K67: =+E67*100/E$63 ->  | M67: 24.78501851 | N67: 25.78720964
A68: Langfristede gældsforpligtelser | C68: 965.3 | D68: 6011 | E68: 0 | G68: =+(E68-D68)/D68 -> -1 | I68: 31.51897081 | J68: 27.06024292 | K68: =+E68*100/E$63 ->  | M68: 177.7487248 | N68: 229.8441832
A69: Kortfristede gældsforpligtelser | C69: 757.4 | D69: 4460.7 | E69: 0 | G69: =+(E69-D69)/D69 -> -1 | I69: 24.73062104 | J69: 20.08112221 | K69: =+E69*100/E$63 ->  | M69: 139.4663671 | N69: 170.5649555
A71: PASSIVER I ALT | C71: 3062.6 | D71: 22213.4 | E71: =SUM(E66:E70) -> 0 | G71: =+(E71-D71)/D71 -> -1 | I71: =SUM(I66:I70) -> 100 | J71: =SUM(J66:J70) -> 100 | K71: =SUM(K66:K70) ->  | M71: =SUM(M66:M70) -> 563.9420333 | N71: =SUM(N66:N70) -> 849.3796004 | O71: =SUM(O66:O70) -> 
A74: PK Revision Rugårdsvej 46C 5000 Odense C Telefon 65 48 73 00 www.pkrevision.dk
A80: =+A6 -> Gartneriet Blomst
A82: REGNSKABSSAMMENDRAG - POTTEPLANTEGARTNERIER MED UNDER 10.000 KVM.
A85: BEREGNEDE NØGLETAL
C87: Gennemsnit pr. gartneri | G87: Forskel
G88: (i %)
C89: =+C15 -> u/10.000 | D89: =+D15 -> Best Prac | E89: 2018
A92: Afkastningsgrad | C92: =+C39*100/C63 -> 7.50016326 | D92: =+D39*100/D63 -> 13.66742597 | E92: =+E39*100/E63 -> 
A93: Overskudsgrad - EBIT-margin | C93: =+C39*100/C19 -> 7.634019077 | D93: =+D39*100/D19 -> 10.49752603 | E93: =+E39*100/E19 -> 
A94: Aktivernes omsætningshast. | C94: =+C19/C63 -> 0.9824658787 | D94: =+D19/D63 -> 1.301966381 | E94: =+E19/E63 -> 
A95: Dækningsgrad | C95: =+C30*100/C19 -> 27.47848051 | D95: =+D30*100/D19 -> 26.67291355 | E95: =+E30*100/E19 -> 
A96: Nulpunktsomsætning (t.kr.) | C96: =+(-C32-C37-C41)*100/C95 -> 2378.224661 | D96: =+(-D32-D37-D41)*100/D95 -> 18416.81071 | E96: =+(-E32-E37-E41)*100/E95 ->  | G96: =+(E96-D96)/D96 -> 
A97: Sikkerhedsmargin | C97: =+(+C19-((-C32-C37-C41)*100/+C95))*100/C19 -> 20.96032898 | D97: =+(+D19-((-D32-D37-D41)*100/+D95))*100/D19 -> 36.32050401 | E97: =+(+E19-((-E32-E37-E41)*100/+E95))*100/E19 -> 
A98: Kapacitetsgrad | C98: =+C30/(-C32-C37-C41) -> 1.265187452 | D98: =+D30/(-D32-D37-D41) -> 1.570364188 | E98: =+E30/(-E32-E37-E41) -> 
A99: Forrentning af primær drift | C99: =+C43*100/+C71 -> 5.65859074 | D99: =+D43*100/+D71 -> 12.6131074 | E99: =+E43*100/+E71 -> 
A100: Egenkapitalens forrentning | C100: =IF(C66<0,C43*100/-C66,C43*100/C66) -> 14.37816311 | D100: =IF(D66<0,D43*100/-D66,D43*100/D66) -> 25.31602107 | E100: =IF(E66<0,E43*100/-E66,E43*100/E66) -> 
A101: Fremmedkapitalens forrentning | C101: =-C41*100/(+C68+C69) -> 3.273930458 | D101: =-D41*100/(+D68+D69) -> 2.236504102 | E101: =-E41*100/(+E68+E69) -> 
A102: Likviditetsgrad | C102: =+C61/C69*100 -> 162.3976763 | D102: =+D61/D69*100 -> 271.9999103 | E102: =+E61/E69*100 -> 
A105: ØVRIGE OPLYSNINGER
C107: Gennemsnit pr. gartneri | G107: Forskel
G108: (i %)
C109: =+C15 -> u/10.000 | D109: =+D15 -> Best Prac | E109: =+E15 -> 2018
A111: AREALOPLYSNINGER I KVM.
A112: Areal drivhuse primo | C112: 5430.7 | D112: 26152.5 | E112: 0
A113: Bygget i året | C113: 0 | D113: 0 | E113: 0
A114: Købt areal | C114: 0 | D114: 0 | E114: 0
A115: Solgt eller nedrevet areal | C115: 0 | D115: 0 | E115: 0
A117: Areal drivhuse ultimo | C117: 5430.7 | D117: 26152.5 | E117: =SUM(E112:E116) -> 0 | G117: =+(E117-D117)/D117 -> -1
A119: Lejet areal | C119: 0 | D119: 10341.6 | E119: 0
A120: Frilandsareal (ej i årets gns.) | C120: 670 | D120: 4000 | E120: 0
A122: Benyttet areal brutto i gns. | C122: 5430.7 | D122: 35219.1 | E122: 0 | G122: =+(E122-D122)/D122 -> -1
A124: LØNOPLYSNINGER
A125: Timer lønnet medhjælp | C125: 3605.5 | D125: 34721.9 | E125: 0 | G125: =+(E125-D125)/D125 -> -1
A126: Timer lønnet medhjælp pr. kvm. | C126: 0.6639107297 | D126: 0.9858826603 | E126: =+E125/E122 ->  | G126: =+(E126-D126)/D126 -> 
A127: Gennemsnitlig kostpris pr. time | C127: 200.0832062 | D127: 207.3676844 | E127: =+(-E24+E47-E50)*1000/E125 ->  | G127: =+(E127-D127)/D127 -> 
A129: INVESTERINGSOPLYSNING
A130: Investering i driftsbygninger | C130: 1.9 | D130: 129.7777778 | E130: 0 | G130: =+(E130-D130)/D130 -> -1
A131: Investering i driftsmateriel m.v. | C131: 17.3 | D131: 303.1 | E131: 0 | G131: =+(E131-D131)/D131 -> -1
A133: Investering i alt (t.kr.) | C133: =SUM(C130:C132) -> 19.2 | D133: 432.8777778 | E133: =SUM(E130:E132) -> 0 | G133: =+(E133-D133)/D133 -> -1
A150: PK Revision Rugårdsvej 46C 5000 Odense C Telefon 65 48 73 00 www.pkrevision.dk

Sheet Potteplanter over 10.000
A6: Gartneriet Blomst
A8: REGNSKABSSAMMENDRAG - POTTEPLANTEGARTNERIER MED OVER 10.000 KVM.
A11: RESULTATOPGØRELSE
C13: Gennemsnit pr. gartneri | G13: Forskel | M13: Gennemsnit pr. kvm.
C14: (I 1.000 DKK) | G14: (i %) | I14: Index | M14: (DKK)
C15: o/10.000 | D15: Best prac | E15: 2018 | I15: =+C15 -> o/10.000 | J15: =+D15 -> Best prac | K15: =E15 -> 2018 | M15: =+C15 -> o/10.000 | N15: =+D15 -> Best prac | O15: =+E15 -> 2018
A17: Areal i gns. | M17: =C123 -> 45022.52632 | N17: =D123 -> 35219.1 | O17: =+E123 -> 0
A19: OMSÆTNING | C19: 35503.21053 | D19: ='Potteplanter under 10.000'!D19 -> 28921.1 | E19: 0 | G19: =+(E19-D19)/D19 -> -1 | I19: =+C19*100/C19 -> 100 | J19: =+D19*100/D19 -> 100 | K19: =+E19*100/E19 ->  | M19: =+C19*1000/M$17 -> 788.56549 | N19: 821.1765775
A20: Salgsomkostninger | C20: -3185.789474 | D20: ='Potteplanter under 10.000'!D20 -> -1895.1 | E20: 0 | G20: =+(E20-D20)/D20 -> -1 | I20: =+C20*100/C$19 -> -8.973243339 | J20: =+D20*100/D$19 -> -6.552655328 | K20: =+E20*100/E$19 ->  | M20: -70.75990031 | N20: -53.80887075
A22: NETTOOMSÆTNING | C22: 32317.42105 | D22: ='Potteplanter under 10.000'!D22 -> 27026 | E22: =SUM(E19:E21) -> 0 | G22: =IF(+D22<0,(-D22+E22)/-D22,(-D22+E22)/D22) -> -1 | I22: =SUM(I19:I21) -> 91.02675666 | J22: =SUM(J19:J21) -> 93.44734467 | K22: =SUM(K19:K21) ->  | M22: =SUM(M19:M21) -> 717.8055897 | N22: =SUM(N19:N21) -> 767.3677067 | O22: =SUM(O19:O21) -> 
A24: Personaleomkostninger | C24: -9349.315789 | D24: ='Potteplanter under 10.000'!D24 -> -6461 | E24: 0 | G24: =+(E24-D24)/D24 -> -1 | I24: =+C24*100/C$19 -> -26.33371926 | J24: -22.3400908 | M24: =+C24*1000/M$17 -> -207.6586224 | N24: -183.451593
A25: Produktionsomkostninger | C25: -10692.21053 | D25: ='Potteplanter under 10.000'!D25 -> -10349.5 | E25: 0 | G25: =+(E25-D25)/D25 -> -1 | I25: -30.11617926 | J25: -35.78529171 | M25: -237.4857966 | N25: -293.8604337
C26: 12275.89474 | D26: ='Potteplanter under 10.000'!D26 -> 10215.5 | E26: =SUM(E22:E25) -> 0 | G26: =IF(+D26<0,(-D26+E26)/-D26,(-D26+E26)/D26) -> -1 | I26: =SUM(I22:I25) -> 34.57685813 | J26: =SUM(J22:J25) -> 35.32196217 | K26: =SUM(K22:K25) ->  | M26: =SUM(M22:M25) -> 272.6611708 | N26: =SUM(N22:N25) -> 290.05568 | O26: =SUM(O22:O25) -> 
A28: Energiomkostninger | C28: -3801.210526 | D28: ='Potteplanter under 10.000'!D28 -> -2501.4 | E28: 0 | G28: =+(E28-D28)/D28 -> -1 | I28: =+C28*100/C$19 -> -10.706667 | J28: =+D28*100/D$19 -> -8.649048618 | K28: =+E28*100/E$19 ->  | M28: =+C28*1000/M$17 -> -84.42908111 | N28: =+D28*1000/N$17 -> -71.02396143 | O28: =+E28*1000/O$17 -> 
A30: DÆKNINGSBIDRAG | C30: 8474.684211 | D30: ='Potteplanter under 10.000'!D30 -> 7714.1 | E30: =SUM(E26:E29) -> 0 | G30: =IF(+D30<0,(-D30+E30)/-D30,(-D30+E30)/D30) -> -1 | I30: =SUM(I26:I29) -> 23.87019113 | J30: =SUM(J26:J29) -> 26.67291355 | K30: =SUM(K26:K29) ->  | M30: =SUM(M26:M29) -> 188.2320897 | N30: =SUM(N26:N29) -> 219.0317186 | O30: =SUM(O26:O29) -> 
A32: Kapacitetsomkostninger | C32: -5086.473684 | D32: ='Potteplanter under 10.000'!D32 -> -3355.3 | E32: 0 | G32: =+(E32-D32)/D32 -> -1 | I32: =+C32*100/C$19 -> -14.32679921 | J32: =+D32*100/D$19 -> -11.60156426 | K32: =+E32*100/E$19 ->  | M32: =+C32*1000/M$17 -> -112.9761944 | N32: =+D32*1000/N$17 -> -95.26932829 | O32: =+E32*1000/O$17 -> 
A34: RES. FØR AFSKRIVNINGER
A35: - EBITDA | C35: 3388.210526 | D35: ='Potteplanter under 10.000'!D35 -> 4358.8 | E35: =SUM(E30:E33) -> 0 | G35: =IF(+D35<0,(-D35+E35)/-D35,(-D35+E35)/D35) -> -1 | I35: =SUM(I30:I33) -> 9.543391925 | J35: =SUM(J30:J33) -> 15.07134929 | K35: =SUM(K30:K33) ->  | M35: =SUM(M30:M33) -> 75.25589529 | N35: =SUM(N30:N33) -> 123.7623903 | O35: =SUM(O30:O33) -> 
A37: Afskrivninger | C37: -1706.157895 | D37: ='Potteplanter under 10.000'!D37 -> -1322.8 | E37: 0 | G37: =+(E37-D37)/D37 -> -1 | I37: =+C37*100/C$19 -> -4.805643967 | J37: =+D37*100/D$19 -> -4.573823264 | K37: =+E37*100/E$19 ->  | M37: =+C37*1000/M$17 -> -37.8956499 | N37: =+D37*1000/N$17 -> -37.55916534 | O37: =+E37*1000/O$17 -> 
A39: DRIFTSRESULTAT - EBIT | C39: 1682.052632 | D39: ='Potteplanter under 10.000'!D39 -> 3036 | E39: =SUM(E35:E38) -> 0 | G39: =IF(+D39<0,(-D39+E39)/-D39,(-D39+E39)/D39) -> -1 | I39: =SUM(I35:I38) -> 4.737747958 | J39: =SUM(J35:J38) -> 10.49752603 | K39: =SUM(K35:K38) ->  | M39: =SUM(M35:M38) -> 37.3602454 | N39: =SUM(N35:N38) -> 86.20322495 | O39: =SUM(O35:O38) -> 
A41: Finansiering, netto | C41: -381.8421053 | D41: ='Potteplanter under 10.000'!D41 -> -234.2 | E41: 0 | G41: =+(E41-D41)/D41 -> -1 | I41: =+C41*100/C$19 -> -1.075514297 | J41: =+D41*100/D$19 -> -0.8097893925 | K41: =+E41*100/E$19 ->  | M41: =+C41*1000/M$17 -> -8.48113459 | N41: =+D41*1000/N$17 -> -6.649800818 | O41: =+E41*1000/O$17 -> 
A43: RESULTAT PRIMÆR DRIFT | C43: 1300.210526 | D43: ='Potteplanter under 10.000'!D43 -> 2801.8 | E43: =SUM(E39:E42) -> 0 | G43: =IF(+D43<0,(-D43+E43)/-D43,(-D43+E43)/D43) -> -1 | I43: =SUM(I39:I42) -> 3.66223366 | J43: =SUM(J39:J42) -> 9.687736635 | K43: =SUM(K39:K42) ->  | M43: =SUM(M39:M42) -> 28.87911081 | N43: =SUM(N39:N42) -> 79.55342414 | O43: =SUM(O39:O42) -> 
A45: SUPPL. OPLYSNINGER
A46: Indeholdt i kapacitetsomk.:
A47: Indirekte løn (t.kr.) | C47: 1878.105263 | D47: ='Potteplanter under 10.000'!D47 -> 1086.6 | E47: 0 | G47: =+(E47-D47)/D47 -> -1 | I47: =+C47*100/C$19 -> 5.289958951 | J47: 3.757118505 | M47: =+C47*1000/M$17 -> 41.71479072 | N47: 30.85257715
A48: Reparation/vedligeholdelse | C48: 1463.210526 | D48: ='Potteplanter under 10.000'!D48 -> 1096.5 | E48: 0 | G48: =+(E48-D48)/D48 -> -1 | I48: 4.121347069 | J48: 3.791349568 | M48: 32.49952071 | N48: 31.13367463
A50: Udgiftsført indehaverløn | C50: 393.0526316 | D50: ='Potteplanter under 10.000'!D50 -> 347.4 | E50: 0
A53: BALANCE
C55: Gennemsnit pr. gartneri | G55: Forskel | M55: Gennemsnit pr. kvm.
C56: (I 1.000 DKK) | G56: (i %) | I56: Index | M56: (DKK)
C57: =+C15 -> o/10.000 | D57: ='Potteplanter under 10.000'!D57 -> Best Prac | E57: =+E15 -> 2018 | I57: =+C57 -> o/10.000 | J57: =+D57 -> Best Prac | K57: =+E57 -> 2018 | M57: =+C57 -> o/10.000 | N57: =+D57 -> Best Prac | O57: =+E57 -> 2018
A59: AKTIVER
A60: Anlægsaktiver | C60: 14194.10526 | D60: ='Potteplanter under 10.000'!D60 -> 10080.3 | E60: 0 | G60: =+(E60-D60)/D60 -> -1 | I60: =+C60*100/C$63 -> 48.29846448 | J60: 45.37936561 | M60: =+C60*1000/C$118 -> 426.7323223 | N60: 385.4430743
A61: Omsætningsaktiver | C61: 15194.21053 | D61: ='Potteplanter under 10.000'!D61 -> 12133.1 | E61: 0 | G61: =+(E61-D61)/D61 -> -1 | I61: 51.70153552 | J61: 54.62063439 | M61: 456.7995392 | N61: 463.9365261
A63: AKTIVER I ALT | C63: 29388.31579 | D63: ='Potteplanter under 10.000'!D63 -> 22213.4 | E63: =SUM(E60:E62) -> 0 | G63: =+(E63-D63)/D63 -> -1 | I63: =SUM(I60:I62) -> 100 | J63: =SUM(J60:J62) -> 100 | K63: =SUM(K60:K62) ->  | M63: =SUM(M60:M62) -> 883.5318616 | N63: =SUM(N60:N62) -> 849.3796004 | O63: =SUM(O60:O62) -> 
A65: PASSIVER
A66: Egenkapital | C66: 10901.42105 | D66: ='Potteplanter under 10.000'!D66 -> 11067.3 | E66: 0 | G66: =IF(+D66<0,(-D66+E66)/-D66,(-D66+E66)/D66) -> -1 | I66: =+C66*100/C$63 -> 37.09440558 | J66: 49.82262958 | K66: =+E66*100/E$63 ->  | M66: =+C66*1000/C$118 -> 327.7408922 | N66: 423.1832521
A67: Hensatte forpligtelser | C67: 936.8421053 | D67: ='Potteplanter under 10.000'!D67 -> 674.4 | E67: 0 | G67: =+(E67-D67)/D67 -> -1 | I67: 3.187804677 | J67: 3.036005294 | K67: =+E67*100/E$63 ->  | M67: 28.16527001 | N67: 25.78720964
A68: Langfristede gældsforpligtelser | C68: 9705.684211 | D68: ='Potteplanter under 10.000'!D68 -> 6011 | E68: 0 | G68: =+(E68-D68)/D68 -> -1 | I68: 33.02565645 | J68: 27.06024292 | K68: =+E68*100/E$63 ->  | M68: 291.7921973 | N68: 229.8441832
A69: Kortfristede gældsforpligtelser | C69: 7844.368421 | D69: ='Potteplanter under 10.000'!D69 -> 4460.7 | E69: 0 | G69: =+(E69-D69)/D69 -> -1 | I69: 26.69213329 | J69: 20.08112221 | K69: =+E69*100/E$63 ->  | M69: 235.8335021 | N69: 170.5649555
A71: PASSIVER I ALT | C71: 29388.31579 | D71: ='Potteplanter under 10.000'!D71 -> 22213.4 | E71: =SUM(E66:E70) -> 0 | G71: =+(E71-D71)/D71 -> -1 | I71: =SUM(I66:I70) -> 100 | J71: =SUM(J66:J70) -> 100 | K71: =SUM(K66:K70) ->  | M71: =SUM(M66:M70) -> 883.5318616 | N71: =SUM(N66:N70) -> 849.3796004 | O71: =SUM(O66:O70) -> 
A73: PK Revision Rugårdsvej 46C 5000 Odense C Telefon 65 48 73 00 www.pkrevision.dk
A79: =+A6 -> Gartneriet Blomst
A81: REGNSKABSSAMMENDRAG - POTTEPLANTEGARTNERIER MED OVER 10.000 KVM.
A84: BEREGNEDE NØGLETAL
C86: Gennemsnit pr. gartneri | G86: Forskel
G87: (i %)
C88: =+C15 -> o/10.000 | D88: =+D15 -> Best prac | E88: =+E15 -> 2018
A91: Afkastningsgrad | C91: =+C39*100/C63 -> 5.723542117 | D91: =+D39*100/D63 -> 13.66742597 | E91: =+E39*100/E63 -> 
A92: Overskudsgrad - EBIT-margin | C92: =+C39*100/C19 -> 4.737747958 | D92: =+D39*100/D19 -> 10.49752603 | E92: =+E39*100/E19 -> 
A93: Aktivernes omsætningshast. | C93: =+C19/C63 -> 1.208072309 | D93: =+D19/D63 -> 1.301966381 | E93: =+E19/E63 -> 
A94: Dækningsgrad | C94: =+C30*100/C19 -> 23.87019113 | D94: =+D30*100/D19 -> 26.67291355 | E94: =+E30*100/E19 -> 
A95: Nulpunktsomsætning (t.kr.) | C95: =+(-C32-C37-C41)*100/C94 -> 30056.20543 | D95: =+(-D32-D37-D41)*100/D94 -> 18416.81071 | E95: =+(-E32-E37-E41)*100/E94 ->  | G95: =+(E95-D95)/D95 -> 
A96: Sikkerhedsmargin | C96: =+(+C19-((-C32-C37-C41)*100/+C94))*100/C19 -> 15.3422888 | D96: =+(+D19-((-D32-D37-D41)*100/+D94))*100/D19 -> 36.32050401 | E96: =+(+E19-((-E32-E37-E41)*100/+E94))*100/E19 -> 
A97: Kapacitetsgrad | C97: =+C30/(-C32-C37-C41) -> 1.181227304 | D97: =+D30/(-D32-D37-D41) -> 1.570364188 | E97: =+E30/(-E32-E37-E41) -> 
A98: Forrentning af primær drift | C98: =+C43*100/+C71 -> 4.424243075 | D98: =+D43*100/+D71 -> 12.6131074 | E98: =+E43*100/+E71 -> 
A99: Egenkapitalens forrentning | C99: =IF(C66<0,C43*100/-C66,C43*100/C66) -> 11.926982 | D99: =IF(D66<0,D43*100/-D66,D43*100/D66) -> 25.31602107 | E99: =IF(E66<0,E43*100/-E66,E43*100/E66) -> 
A100: Fremmedkapitalens forrentning | C100: =-C41*100/(+C68+C69) -> 2.175731967 | D100: =-D41*100/(+D68+D69) -> 2.236504102 | E100: =-E41*100/(+E68+E69) -> 
A101: Likviditetsgrad | C101: =+C61/C69*100 -> 193.6957791 | D101: =+D61/D69*100 -> 271.9999103 | E101: =+E61/E69*100 -> 
A106: ØVRIGE OPLYSNINGER
C108: Gennemsnit pr. gartneri | G108: Forskel
G109: (i %)
C110: =+C15 -> o/10.000 | D110: =+D15 -> Best prac | E110: =+E15 -> 2018
A112: AREALOPLYSNINGER I KVM.
A113: Areal drivhuse primo | C113: 33262.31579 | D113: ='Potteplanter under 10.000'!D112 -> 26152.5 | E113: 0
A114: Bygget i året | C114: 0 | D114: ='Potteplanter under 10.000'!D113 -> 0 | E114: 0
A115: Købt areal | C115: 0 | D115: ='Potteplanter under 10.000'!D114 -> 0 | E115: 0
A116: Solgt eller nedrevet areal | C116: 0 | D116: ='Potteplanter under 10.000'!D115 -> 0 | E116: 0
A118: Areal drivhuse ultimo | C118: 33262.31579 | D118: ='Potteplanter under 10.000'!D117 -> 26152.5 | E118: =SUM(E113:E117) -> 0 | G118: =+(E118-D118)/D118 -> -1
A120: Lejet areal | C120: 14307.57895 | D120: ='Potteplanter under 10.000'!D119 -> 10341.6 | E120: 0
A121: Frilandsareal (ej i årets gns.) | C121: 2263.157895 | D121: ='Potteplanter under 10.000'!D120 -> 4000 | E121: 0
A123: Benyttet areal brutto i gns. | C123: 45022.52632 | D123: ='Potteplanter under 10.000'!D122 -> 35219.1 | E123: 0 | G123: =+(E123-D123)/D123 -> -1
A125: LØNOPLYSNINGER
A126: Timer lønnet medhjælp | C126: 50993.21053 | D126: ='Potteplanter under 10.000'!D125 -> 34721.9 | E126: 0 | G126: =+(E126-D126)/D126 -> -1
A127: Timer lønnet medhjælp pr. kvm. | C127: 1.132615486 | D127: ='Potteplanter under 10.000'!D126 -> 0.9858826603 | E127: =+E126/E123 ->  | G127: =+(E127-D127)/D127 -> 
A128: Gennemsnitlig kostpris pr. time | C128: 212.4668816 | D128: ='Potteplanter under 10.000'!D127 -> 207.3676844 | E128: =+(-E24+E47-E50)*1000/E126 ->  | G128: =+(E128-D128)/D128 -> 
A130: INVESTERINGSOPLYSNING
A131: Investering i driftsbygninger | C131: 874.4444444 | D131: ='Potteplanter under 10.000'!D130 -> 129.7777778 | E131: 0 | G131: =+(E131-D131)/D131 -> -1
A132: Investering i driftsmateriel m.v. | C132: 439.6842105 | D132: ='Potteplanter under 10.000'!D131 -> 303.1 | E132: 0 | G132: =+(E132-D132)/D132 -> -1
A134: Investering i alt (t.kr.) | C134: 1314.128655 | D134: ='Potteplanter under 10.000'!D133 -> 432.8777778 | E134: =SUM(E131:E133) -> 0 | G134: =+(E134-D134)/D134 -> -1
A149: PK Revision Rugårdsvej 46C 5000 Odense C Telefon 65 48 73 00 www.pkrevision.dk

Sheet Potteplanter 10.-20.000
A6: Gartneriet Blomst
A8: REGNSKABSSAMMENDRAG - POTTEPLANTEGARTNERIER MELLEM 10.000 og 20.000 KVM.
A11: RESULTATOPGØRELSE
C13: Gennemsnit pr. gartneri | G13: Forskel | M13: Gennemsnit pr. kvm.
C14: (I 1.000 DKK) | G14: (i %) | I14: Index | M14: (DKK)
C15: 10.-20.000 | D15: Best prac | E15: 2018 | I15: =+C15 -> 10.-20.000 | J15: =+D15 -> Best prac | K15: =+E15 -> 2018 | M15: =+C15 -> 10.-20.000 | N15: =+D15 -> Best prac | O15: =+E15 -> 2018
A17: Areal i gns. | M17: =C123 -> 13687.14286 | N17: =D123 -> 35219.1 | O17: =+E123 -> 0
A19: OMSÆTNING | C19: 7827.428571 | D19: ='Potteplanter over 10.000'!D19 -> 28921.1 | E19: 0 | G19: =+(E19-D19)/D19 -> -1 | I19: =+C19*100/C19 -> 100 | J19: =+D19*100/D19 -> 100 | K19: =+E19*100/E19 ->  | M19: =+C19*1000/M$17 -> 571.8818495 | N19: 821.1765775
A20: Salgsomkostninger | C20: -592.4285714 | D20: ='Potteplanter over 10.000'!D20 -> -1895.1 | E20: 0 | G20: =+(E20-D20)/D20 -> -1 | I20: =+C20*100/C$19 -> -7.568623157 | J20: =+D20*100/D$19 -> -6.552655328 | K20: =+E20*100/E$19 ->  | M20: -43.28358209 | N20: -53.80887075
A22: NETTOOMSÆTNING | C22: 7235 | D22: ='Potteplanter over 10.000'!D22 -> 27026 | E22: =SUM(E19:E21) -> 0 | G22: =IF(+D22<0,(-D22+E22)/-D22,(-D22+E22)/D22) -> -1 | I22: =SUM(I19:I21) -> 92.43137684 | J22: =SUM(J19:J21) -> 93.44734467 | K22: =SUM(K19:K21) ->  | M22: =SUM(M19:M21) -> 528.5982674 | N22: =SUM(N19:N21) -> 767.3677067 | O22: =SUM(O19:O21) -> 
A24: Personaleomkostninger | C24: -2068.714286 | D24: ='Potteplanter over 10.000'!D24 -> -6461 | E24: 0 | G24: =+(E24-D24)/D24 -> -1 | I24: =+C24*100/C$19 -> -26.42904074 | J24: -22.3400908 | M24: =+C24*1000/M$17 -> -151.142887 | N24: -183.451593
A25: Produktionsomkostninger | C25: -2823.285714 | D25: ='Potteplanter over 10.000'!D25 -> -10349.5 | E25: 0 | G25: =+(E25-D25)/D25 -> -1 | I25: -36.06913418 | J25: -35.78529171 | M25: -206.2728316 | N25: -293.8604337
C26: 2343 | D26: ='Potteplanter over 10.000'!D26 -> 10215.5 | E26: =SUM(E22:E25) -> 0 | G26: =IF(+D26<0,(-D26+E26)/-D26,(-D26+E26)/D26) -> -1 | I26: =SUM(I22:I25) -> 29.93320193 | J26: =SUM(J22:J25) -> 35.32196217 | K26: =SUM(K22:K25) ->  | M26: =SUM(M22:M25) -> 171.1825488 | N26: =SUM(N22:N25) -> 290.05568 | O26: =SUM(O22:O25) -> 
A28: Energiomkostninger | C28: -556.8571429 | D28: ='Potteplanter over 10.000'!D28 -> -2501.4 | E28: 0 | G28: =+(E28-D28)/D28 -> -1 | I28: =+C28*100/C$19 -> -7.114177252 | J28: =+D28*100/D$19 -> -8.649048618 | K28: =+E28*100/E$19 ->  | M28: =+C28*1000/M$17 -> -40.68468845 | N28: =+D28*1000/N$17 -> -71.02396143 | O28: =+E28*1000/O$17 -> 
A30: DÆKNINGSBIDRAG | C30: 1786.142857 | D30: ='Potteplanter over 10.000'!D30 -> 7714.1 | E30: =SUM(E26:E29) -> 0 | G30: =IF(+D30<0,(-D30+E30)/-D30,(-D30+E30)/D30) -> -1 | I30: =SUM(I26:I29) -> 22.81902468 | J30: =SUM(J26:J29) -> 26.67291355 | K30: =SUM(K26:K29) ->  | M30: =SUM(M26:M29) -> 130.4978603 | N30: =SUM(N26:N29) -> 219.0317186 | O30: =SUM(O26:O29) -> 
A32: Kapacitetsomkostninger | C32: -988.8571429 | D32: ='Potteplanter over 10.000'!D32 -> -3355.3 | E32: 0 | G32: =+(E32-D32)/D32 -> -1 | I32: =+C32*100/C$19 -> -12.63323113 | J32: =+D32*100/D$19 -> -11.60156426 | K32: =+E32*100/E$19 ->  | M32: =+C32*1000/M$17 -> -72.24715583 | N32: =+D32*1000/N$17 -> -95.26932829 | O32: =+E32*1000/O$17 -> 
A34: RES. FØR AFSKRIVNINGER
A35: - EBITDA | C35: 797.2857143 | D35: ='Potteplanter over 10.000'!D35 -> 4358.8 | E35: =SUM(E30:E33) -> 0 | G35: =IF(+D35<0,(-D35+E35)/-D35,(-D35+E35)/D35) -> -1 | I35: =SUM(I30:I33) -> 10.18579355 | J35: =SUM(J30:J33) -> 15.07134929 | K35: =SUM(K30:K33) ->  | M35: =SUM(M30:M33) -> 58.25070452 | N35: =SUM(N30:N33) -> 123.7623903 | O35: =SUM(O30:O33) -> 
A37: Afskrivninger | C37: -429 | D37: ='Potteplanter over 10.000'!D37 -> -1322.8 | E37: 0 | G37: =+(E37-D37)/D37 -> -1 | I37: =+C37*100/C$19 -> -5.480727113 | J37: =+D37*100/D$19 -> -4.573823264 | K37: =+E37*100/E$19 ->  | M37: =+C37*1000/M$17 -> -31.34328358 | N37: =+D37*1000/N$17 -> -37.55916534 | O37: =+E37*1000/O$17 -> 
A39: DRIFTSRESULTAT - EBIT | C39: 368.2857143 | D39: ='Potteplanter over 10.000'!D39 -> 3036 | E39: =SUM(E35:E38) -> 0 | G39: =IF(+D39<0,(-D39+E39)/-D39,(-D39+E39)/D39) -> -1 | I39: =SUM(I35:I38) -> 4.705066433 | J39: =SUM(J35:J38) -> 10.49752603 | K39: =SUM(K35:K38) ->  | M39: =SUM(M35:M38) -> 26.90742094 | N39: =SUM(N35:N38) -> 86.20322495 | O39: =SUM(O35:O38) -> 
A41: Finansiering, netto | C41: -64.28571429 | D41: ='Potteplanter over 10.000'!D41 -> -234.2 | E41: 0 | G41: =+(E41-D41)/D41 -> -1 | I41: =+C41*100/C$19 -> -0.8212877792 | J41: =+D41*100/D$19 -> -0.8097893925 | K41: =+E41*100/E$19 ->  | M41: =+C41*1000/M$17 -> -4.696795742 | N41: =+D41*1000/N$17 -> -6.649800818 | O41: =+E41*1000/O$17 -> 
A43: RESULTAT PRIMÆR DRIFT | C43: 304 | D43: ='Potteplanter over 10.000'!D43 -> 2801.8 | E43: =SUM(E39:E42) -> 0 | G43: =IF(+D43<0,(-D43+E43)/-D43,(-D43+E43)/D43) -> -1 | I43: =SUM(I39:I42) -> 3.883778654 | J43: =SUM(J39:J42) -> 9.687736635 | K43: =SUM(K39:K42) ->  | M43: =SUM(M39:M42) -> 22.2106252 | N43: =SUM(N39:N42) -> 79.55342414 | O43: =SUM(O39:O42) -> 
A45: SUPPL. OPLYSNINGER
A46: Indeholdt i kapacitetsomk.:
A47: Indirekte løn (t.kr.) | C47: 241.5714286 | D47: ='Potteplanter over 10.000'!D47 -> 1086.6 | E47: 0 | G47: =+(E47-D47)/D47 -> -1 | I47: =+C47*100/C$19 -> 3.086216966 | J47: 3.757118505 | M47: =+C47*1000/M$17 -> 17.64951466 | N47: 30.85257715
A48: Reparation/vedligeholdelse | C48: 355.7142857 | D48: ='Potteplanter over 10.000'!D48 -> 1096.5 | E48: 0 | G48: =+(E48-D48)/D48 -> -1 | I48: 4.544459045 | J48: 3.791349568 | M48: 25.98893644 | N48: 31.13367463
A50: Udgiftsført indehaverløn | C50: 270.4285714 | D50: ='Potteplanter over 10.000'!D50 -> 347.4 | E50: 0
A53: BALANCE
C55: Gennemsnit pr. gartneri | G55: Forskel | M55: Gennemsnit pr. kvm.
C56: (I 1.000 DKK) | G56: (i %) | I56: Index | M56: (DKK)
C57: =+C15 -> 10.-20.000 | D57: Best Prac | E57: =+E15 -> 2018 | I57: =+C57 -> 10.-20.000 | J57: =+D57 -> Best Prac | K57: =+E57 -> 2018 | M57: =+C57 -> 10.-20.000 | N57: =+D57 -> Best Prac | O57: =+E57 -> 2018
A59: AKTIVER
A60: Anlægsaktiver | C60: 3775.571429 | D60: ='Potteplanter over 10.000'!D60 -> 10080.3 | E60: 0 | G60: =+(E60-D60)/D60 -> -1 | I60: =+C60*100/C$63 -> 44.35437855 | J60: 45.37936561 | M60: =+C60*1000/C$118 -> 278.0244056 | N60: 385.4430743
A61: Omsætningsaktiver | C61: 4736.714286 | D61: ='Potteplanter over 10.000'!D61 -> 12133.1 | E61: 0 | G61: =+(E61-D61)/D61 -> -1 | I61: 55.64562145 | J61: 54.62063439 | M61: 348.8007574 | N61: 463.9365261
A63: AKTIVER I ALT | C63: 8512.285714 | D63: ='Potteplanter over 10.000'!D63 -> 22213.4 | E63: =SUM(E60:E62) -> 0 | G63: =+(E63-D63)/D63 -> -1 | I63: =SUM(I60:I62) -> 100 | J63: =SUM(J60:J62) -> 100 | K63: =SUM(K60:K62) ->  | M63: =SUM(M60:M62) -> 626.8251631 | N63: =SUM(N60:N62) -> 849.3796004 | O63: =SUM(O60:O62) -> 
A65: PASSIVER
A66: Egenkapital | C66: 4065.571429 | D66: ='Potteplanter over 10.000'!D66 -> 11067.3 | E66: 0 | G66: =IF(+D66<0,(-D66+E66)/-D66,(-D66+E66)/D66) -> -1 | I66: =+C66*100/C$63 -> 47.76121908 | J66: 49.82262958 | K66: =+E66*100/E$63 ->  | M66: =+C66*1000/C$118 -> 299.3793394 | N66: 423.1832521
A67: Hensatte forpligtelser | C67: 382.1428571 | D67: ='Potteplanter over 10.000'!D67 -> 674.4 | E67: 0 | G67: =+(E67-D67)/D67 -> -1 | I67: 4.489309569 | J67: 3.036005294 | K67: =+E67*100/E$63 ->  | M67: 28.14012203 | N67: 25.78720964
A68: Langfristede gældsforpligtelser | C68: 2102.142857 | D68: ='Potteplanter over 10.000'!D68 -> 6011 | E68: 0 | G68: =+(E68-D68)/D68 -> -1 | I68: 24.69539825 | J68: 27.06024292 | K68: =+E68*100/E$63 ->  | M68: 154.7969703 | N68: 229.8441832
A69: Kortfristede gældsforpligtelser | C69: 1962.428571 | D69: ='Potteplanter over 10.000'!D69 -> 4460.7 | E69: 0 | G69: =+(E69-D69)/D69 -> -1 | I69: 23.0540731 | J69: 20.08112221 | K69: =+E69*100/E$63 ->  | M69: 144.5087313 | N69: 170.5649555
A71: PASSIVER I ALT | C71: 8512.285714 | D71: ='Potteplanter over 10.000'!D71 -> 22213.4 | E71: =SUM(E66:E70) -> 0 | G71: =+(E71-D71)/D71 -> -1 | I71: =SUM(I66:I70) -> 100 | J71: =SUM(J66:J70) -> 100 | K71: =SUM(K66:K70) ->  | M71: =SUM(M66:M70) -> 626.8251631 | N71: =SUM(N66:N70) -> 849.3796004 | O71: =SUM(O66:O70) -> 
A73: PK Revision Rugårdsvej 46C 5000 Odense C Telefon 65 48 73 00 www.pkrevision.dk
A79: =+A6 -> Gartneriet Blomst
A81: =A8 -> REGNSKABSSAMMENDRAG - POTTEPLANTEGARTNERIER MELLEM 10.000 og 20.000 KVM.
A84: BEREGNEDE NØGLETAL
C86: Gennemsnit pr. gartneri | G86: Forskel
G87: (i %)
C88: =+C15 -> 10.-20.000 | D88: =+D15 -> Best prac | E88: =+E15 -> 2018
A91: Afkastningsgrad | C91: =+C39*100/C63 -> 4.326519652 | D91: =+D39*100/D63 -> 13.66742597 | E91: =+E39*100/E63 -> 
A92: Overskudsgrad - EBIT-margin | C92: =+C39*100/C19 -> 4.705066433 | D92: =+D39*100/D19 -> 10.49752603 | E92: =+E39*100/E19 -> 
A93: Aktivernes omsætningshast. | C93: =+C19/C63 -> 0.9195448595 | D93: =+D19/D63 -> 1.301966381 | E93: =+E19/E63 -> 
A94: Dækningsgrad | C94: =+C30*100/C19 -> 22.81902468 | D94: =+D30*100/D19 -> 26.67291355 | E94: =+E30*100/E19 -> 
A95: Nulpunktsomsætning (t.kr.) | C95: =+(-C32-C37-C41)*100/C94 -> 6495.206865 | D95: =+(-D32-D37-D41)*100/D94 -> 18416.81071 | E95: =+(-E32-E37-E41)*100/E94 ->  | G95: =+(E95-D95)/D95 -> 
A96: Sikkerhedsmargin | C96: =+(+C19-((-C32-C37-C41)*100/+C94))*100/C19 -> 17.01991522 | D96: =+(+D19-((-D32-D37-D41)*100/+D94))*100/D19 -> 36.32050401 | E96: =+(+E19-((-E32-E37-E41)*100/+E94))*100/E19 -> 
A97: Kapacitetsgrad | C97: =+C30/(-C32-C37-C41) -> 1.205108434 | D97: =+D30/(-D32-D37-D41) -> 1.570364188 | E97: =+E30/(-E32-E37-E41) -> 
A98: Forrentning af primær drift | C98: =+C43*100/+C71 -> 3.571308697 | D98: =+D43*100/+D71 -> 12.6131074 | E98: =+E43*100/+E71 -> 
A99: Egenkapitalens forrentning | C99: =IF(C66<0,C43*100/-C66,C43*100/C66) -> 7.477423662 | D99: =IF(D66<0,D43*100/-D66,D43*100/D66) -> 25.31602107 | E99: =IF(E66<0,E43*100/-E66,E43*100/E66) -> 
A100: Fremmedkapitalens forrentning | C100: =-C41*100/(+C68+C69) -> 1.581611135 | D100: =-D41*100/(+D68+D69) -> 2.236504102 | E100: =-E41*100/(+E68+E69) -> 
A101: Likviditetsgrad | C101: =+C61/C69*100 -> 241.3700226 | D101: =+D61/D69*100 -> 271.9999103 | E101: =+E61/E69*100 -> 
A106: ØVRIGE OPLYSNINGER
C108: Gennemsnit pr. gartneri | G108: Forskel
G109: (i %)
C110: =+C15 -> 10.-20.000 | D110: =+D15 -> Best prac | E110: =+E15 -> 2018
A112: AREALOPLYSNINGER I KVM.
A113: Areal drivhuse primo | C113: 13580 | D113: ='Potteplanter over 10.000'!D113 -> 26152.5 | E113: 0
A114: Bygget i året | C114: 0 | D114: ='Potteplanter over 10.000'!D114 -> 0 | E114: 0
A115: Købt areal | C115: 0 | D115: ='Potteplanter over 10.000'!D115 -> 0 | E115: 0
A116: Solgt eller nedrevet areal | C116: 0 | D116: ='Potteplanter over 10.000'!D116 -> 0 | E116: 0
A118: Areal drivhuse ultimo | C118: 13580 | D118: ='Potteplanter over 10.000'!D118 -> 26152.5 | E118: =SUM(E113:E117) -> 0 | G118: =+(E118-D118)/D118 -> -1
A120: Lejet areal | C120: 428.5714286 | D120: ='Potteplanter over 10.000'!D120 -> 10341.6 | E120: 0
A121: Frilandsareal (ej i årets gns.) | C121: 0 | D121: ='Potteplanter over 10.000'!D121 -> 4000 | E121: 0
A123: Benyttet areal brutto i gns. | C123: 13687.14286 | D123: ='Potteplanter over 10.000'!D123 -> 35219.1 | E123: 0 | G123: =+(E123-D123)/D123 -> -1
A125: LØNOPLYSNINGER
A126: Timer lønnet medhjælp | C126: 9972.857143 | D126: ='Potteplanter over 10.000'!D126 -> 34721.9 | E126: 0 | G126: =+(E126-D126)/D126 -> -1
A127: Timer lønnet medhjælp pr. kvm. | C127: 0.7286295794 | D127: ='Potteplanter over 10.000'!D127 -> 0.9858826603 | E127: =+E126/E123 ->  | G127: =+(E127-D127)/D127 -> 
A128: Gennemsnitlig kostpris pr. time | C128: 204.5408967 | D128: ='Potteplanter over 10.000'!D128 -> 207.3676844 | E128: =+(-E24+E47-E50)*1000/E126 ->  | G128: =+(E128-D128)/D128 -> 
A130: INVESTERINGSOPLYSNING
A131: Investering i driftsbygninger | C131: 18.33333333 | D131: ='Potteplanter over 10.000'!D131 -> 129.7777778 | E131: 0 | G131: =+(E131-D131)/D131 -> -1
A132: Investering i driftsmateriel m.v. | C132: 181.1428571 | D132: ='Potteplanter over 10.000'!D132 -> 303.1 | E132: 0 | G132: =+(E132-D132)/D132 -> -1
A134: Investering i alt (t.kr.) | C134: 199.4761905 | D134: =SUM(D131:D132) -> 432.8777778 | E134: =SUM(E131:E133) -> 0 | G134: =+(E134-D134)/D134 -> -1
A149: PK Revision Rugårdsvej 46C 5000 Odense C Telefon 65 48 73 00 www.pkrevision.dk

Sheet Megagartnerier
A6: Gartneriet Blomst
A8: REGNSKABSSAMMENDRAG - MEGAGARTNERIER MED OVER 20.000 KVM.
A11: RESULTATOPGØRELSE
C13: Gennemsnit pr. gartneri | G13: Forskel | M13: Gennemsnit pr. kvm.
C14: (I 1.000 DKK) | G14: (i %) | I14: Index | M14: (DKK)
C15: o/20.000 | D15: Best prac | E15: 2018 | I15: =+C15 -> o/20.000 | J15: =+D15 -> Best prac | K15: =+E15 -> 2018 | M15: =+C15 -> o/20.000 | N15: =+D15 -> Best prac | O15: =+E15 -> 2018
A17: Areal i gns. | M17: =C123 -> 59970.61538 | N17: =D123 -> 35219.1 | O17: =+E123 -> 0
A19: OMSÆTNING | C19: 49078.53846 | D19: ='Potteplanter 10.-20.000'!D19 -> 28921.1 | E19: 0 | G19: =+(E19-D19)/D19 -> -1 | I19: =+C19*100/C19 -> 100 | J19: =+D19*100/D19 -> 100 | K19: =+E19*100/E19 ->  | M19: =+C19*1000/M$17 -> 818.3764356 | N19: 821.1765775
A20: Salgsomkostninger | C20: -4459.692308 | D20: ='Potteplanter 10.-20.000'!D20 -> -1895.1 | E20: 0 | G20: =+(E20-D20)/D20 -> -1 | I20: =+C20*100/C$19 -> -9.086848239 | J20: =+D20*100/D$19 -> -6.552655328 | K20: =+E20*100/E$19 ->  | M20: -74.36462473 | N20: -53.80887075
A22: NETTOOMSÆTNING | C22: 44618.84615 | D22: ='Potteplanter 10.-20.000'!D22 -> 27026 | E22: =SUM(E19:E21) -> 0 | G22: =IF(+D22<0,(-D22+E22)/-D22,(-D22+E22)/D22) -> -1 | I22: =SUM(I19:I21) -> 90.91315176 | J22: =SUM(J19:J21) -> 93.44734467 | K22: =SUM(K19:K21) ->  | M22: =SUM(M19:M21) -> 744.0118109 | N22: =SUM(N19:N21) -> 767.3677067 | O22: =SUM(O19:O21) -> 
A24: Personaleomkostninger | C24: -12867.46154 | D24: ='Potteplanter 10.-20.000'!D24 -> -6461 | E24: 0 | G24: =+(E24-D24)/D24 -> -1 | I24: =+C24*100/C$19 -> -26.21810254 | J24: -22.3400908 | M24: =+C24*1000/M$17 -> -214.5627731 | N24: -183.451593
A25: Produktionsomkostninger | C25: -14781.30769 | D25: ='Potteplanter 10.-20.000'!D25 -> -10349.5 | E25: 0 | G25: =+(E25-D25)/D25 -> -1 | I25: -30.1176607 | J25: -35.78529171 | M25: -246.4758382 | N25: -293.8604337
C26: 16970.07692 | D26: ='Potteplanter 10.-20.000'!D26 -> 10215.5 | E26: =SUM(E22:E25) -> 0 | G26: =IF(+D26<0,(-D26+E26)/-D26,(-D26+E26)/D26) -> -1 | I26: =SUM(I22:I25) -> 34.57738852 | J26: =SUM(J22:J25) -> 35.32196217 | K26: =SUM(K22:K25) ->  | M26: =SUM(M22:M25) -> 282.9731997 | N26: =SUM(N22:N25) -> 290.05568 | O26: =SUM(O22:O25) -> 
A28: Energiomkostninger | C28: -5301.076923 | D28: ='Potteplanter 10.-20.000'!D28 -> -2501.4 | E28: 0 | G28: =+(E28-D28)/D28 -> -1 | I28: =+C28*100/C$19 -> -10.80121187 | J28: =+D28*100/D$19 -> -8.649048618 | K28: =+E28*100/E$19 ->  | M28: =+C28*1000/M$17 -> -88.39457273 | N28: =+D28*1000/N$17 -> -71.02396143 | O28: =+E28*1000/O$17 -> 
A30: DÆKNINGSBIDRAG | C30: 11669 | D30: ='Potteplanter 10.-20.000'!D30 -> 7714.1 | E30: =SUM(E26:E29) -> 0 | G30: =IF(+D30<0,(-D30+E30)/-D30,(-D30+E30)/D30) -> -1 | I30: =SUM(I26:I29) -> 23.77617665 | J30: =SUM(J26:J29) -> 26.67291355 | K30: =SUM(K26:K29) ->  | M30: =SUM(M26:M29) -> 194.578627 | N30: =SUM(N26:N29) -> 219.0317186 | O30: =SUM(O26:O29) -> 
A32: Kapacitetsomkostninger | C32: -7020.307692 | D32: ='Potteplanter 10.-20.000'!D32 -> -3355.3 | E32: 0 | G32: =+(E32-D32)/D32 -> -1 | I32: =+C32*100/C$19 -> -14.30423137 | J32: =+D32*100/D$19 -> -11.60156426 | K32: =+E32*100/E$19 ->  | M32: =+C32*1000/M$17 -> -117.0624588 | N32: =+D32*1000/N$17 -> -95.26932829 | O32: =+E32*1000/O$17 -> 
A34: RES. FØR AFSKRIVNINGER
A35: - EBITDA | C35: 4648.692308 | D35: ='Potteplanter 10.-20.000'!D35 -> 4358.8 | E35: =SUM(E30:E33) -> 0 | G35: =IF(+D35<0,(-D35+E35)/-D35,(-D35+E35)/D35) -> -1 | I35: =SUM(I30:I33) -> 9.471945281 | J35: =SUM(J30:J33) -> 15.07134929 | K35: =SUM(K30:K33) ->  | M35: =SUM(M30:M33) -> 77.51616817 | N35: =SUM(N30:N33) -> 123.7623903 | O35: =SUM(O30:O33) -> 
A37: Afskrivninger | C37: -2296.076923 | D37: ='Potteplanter 10.-20.000'!D37 -> -1322.8 | E37: 0 | G37: =+(E37-D37)/D37 -> -1 | I37: =+C37*100/C$19 -> -4.678372655 | J37: =+D37*100/D$19 -> -4.573823264 | K37: =+E37*100/E$19 ->  | M37: =+C37*1000/M$17 -> -38.28669938 | N37: =+D37*1000/N$17 -> -37.55916534 | O37: =+E37*1000/O$17 -> 
A39: DRIFTSRESULTAT - EBIT | C39: 2352.615385 | D39: ='Potteplanter 10.-20.000'!D39 -> 3036 | E39: =SUM(E35:E38) -> 0 | G39: =IF(+D39<0,(-D39+E39)/-D39,(-D39+E39)/D39) -> -1 | I39: =SUM(I35:I38) -> 4.793572625 | J39: =SUM(J35:J38) -> 10.49752603 | K39: =SUM(K35:K38) ->  | M39: =SUM(M35:M38) -> 39.22946879 | N39: =SUM(N35:N38) -> 86.20322495 | O39: =SUM(O35:O38) -> 
A41: Finansiering, netto | C41: -533.4615385 | D41: ='Potteplanter 10.-20.000'!D41 -> -234.2 | E41: 0 | G41: =+(E41-D41)/D41 -> -1 | I41: =+C41*100/C$19 -> -1.086954818 | J41: =+D41*100/D$19 -> -0.8097893925 | K41: =+E41*100/E$19 ->  | M41: =+C41*1000/M$17 -> -8.895382097 | N41: =+D41*1000/N$17 -> -6.649800818 | O41: =+E41*1000/O$17 -> 
A43: RESULTAT PRIMÆR DRIFT | C43: 1819.153846 | D43: ='Potteplanter 10.-20.000'!D43 -> 2801.8 | E43: =SUM(E39:E42) -> 0 | G43: =IF(+D43<0,(-D43+E43)/-D43,(-D43+E43)/D43) -> -1 | I43: =SUM(I39:I42) -> 3.706617807 | J43: =SUM(J39:J42) -> 9.687736635 | K43: =SUM(K39:K42) ->  | M43: =SUM(M39:M42) -> 30.33408669 | N43: =SUM(N39:N42) -> 79.55342414 | O43: =SUM(O39:O42) -> 
A45: SUPPL. OPLYSNINGER
A46: Indeholdt i kapacitetsomk.:
A47: Indirekte løn (t.kr.) | C47: 2626.846154 | D47: 1090 | E47: 0 | G47: =+(E47-D47)/D47 -> -1 | I47: =+C47*100/C$19 -> 5.352331663 | J47: 3.768874628 | M47: =+C47*1000/M$17 -> 43.80222109 | N47: 30.94911568
A48: Reparation/vedligeholdelse | C48: 1980 | D48: 913 | E48: 0 | G48: =+(E48-D48)/D48 -> -1 | I48: 4.034349967 | J48: 3.156864711 | M48: =+C48*1000/M$17 -> 33.01616946 | N48: 25.92343359
A50: Udgiftsført indehaverløn | C50: 448.2307692 | D50: 345 | E50: 0
A53: BALANCE
C55: Gennemsnit pr. gartneri | G55: Forskel | M55: Gennemsnit pr. kvm.
C56: (I 1.000 DKK) | G56: (i %) | I56: Index | M56: (DKK)
C57: =+C15 -> o/20.000 | D57: Best Prac | E57: =+E15 -> 2018 | I57: =+C57 -> o/20.000 | J57: =+D57 -> Best Prac | K57: =+E57 -> 2018 | M57: =+C57 -> o/20.000 | N57: =+D57 -> Best Prac | O57: =+E57 -> 2018
A59: AKTIVER
A60: Anlægsaktiver | C60: 19168.76923 | D60: ='Potteplanter 10.-20.000'!D60 -> 10080.3 | E60: 0 | G60: =+(E60-D60)/D60 -> -1 | I60: =+C60*100/C$63 -> 48.58406786 | J60: 45.37936561 | M60: =+C60*1000/C$118 -> 447.4470484 | N60: =+D60*1000/D$118 -> 385.4430743
A61: Omsætningsaktiver | C61: 20286.07692 | D61: ='Potteplanter 10.-20.000'!D61 -> 12133.1 | E61: 0 | G61: =+(E61-D61)/D61 -> -1 | I61: 51.41593214 | J61: 54.62063439 | M61: 473.5278063 | N61: 463.9365261
A63: AKTIVER I ALT | C63: 39454.84615 | D63: ='Potteplanter 10.-20.000'!D63 -> 22213.4 | E63: =SUM(E60:E62) -> 0 | G63: =+(E63-D63)/D63 -> -1 | I63: =SUM(I60:I62) -> 100 | J63: =SUM(J60:J62) -> 100 | K63: =SUM(K60:K62) ->  | M63: =SUM(M60:M62) -> 920.9748547 | N63: =SUM(N60:N62) -> 849.3796004 | O63: =SUM(O60:O62) -> 
A65: PASSIVER
A66: Egenkapital | C66: 13946.84615 | D66: ='Potteplanter 10.-20.000'!D66 -> 11067.3 | E66: 0 | G66: =IF(+D66<0,(-D66+E66)/-D66,(-D66+E66)/D66) -> -1 | I66: =+C66*100/C$63 -> 35.34887983 | J66: 49.82262958 | K66: =+E66*100/E$63 ->  | M66: =+C66*1000/C$118 -> 325.5542947 | N66: 423.1832521
A67: Hensatte forpligtelser | C67: 1128.923077 | D67: ='Potteplanter 10.-20.000'!D67 -> 674.4 | E67: 0 | G67: =+(E67-D67)/D67 -> -1 | I67: 2.861303964 | J67: 3.036005294 | K67: =+E67*100/E$63 ->  | M67: 26.35189002 | N67: 25.78720964
A68: Langfristede gældsforpligtelser | C68: 13381.84615 | D68: ='Potteplanter 10.-20.000'!D68 -> 6011 | E68: 0 | G68: =+(E68-D68)/D68 -> -1 | I68: 33.91686309 | J68: 27.06024292 | K68: =+E68*100/E$63 ->  | M68: 312.3657806 | N68: 229.8441832
A69: Kortfristede gældsforpligtelser | C69: 10997.23077 | D69: ='Potteplanter 10.-20.000'!D69 -> 4460.7 | E69: 0 | G69: =+(E69-D69)/D69 -> -1 | I69: 27.87295311 | J69: 20.08112221 | K69: =+E69*100/E$63 ->  | M69: 256.7028894 | N69: 170.5649555
A71: PASSIVER I ALT | C71: 39454.84615 | D71: ='Potteplanter 10.-20.000'!D71 -> 22213.4 | E71: =SUM(E66:E70) -> 0 | G71: =+(E71-D71)/D71 -> -1 | I71: =SUM(I66:I70) -> 100 | J71: =SUM(J66:J70) -> 100 | K71: =SUM(K66:K70) ->  | M71: =SUM(M66:M70) -> 920.9748547 | N71: =SUM(N66:N70) -> 849.3796004 | O71: =SUM(O66:O70) -> 
A73: PK Revision Rugårdsvej 46C 5000 Odense C Telefon 65 48 73 00 www.pkrevision.dk
A79: =+A6 -> Gartneriet Blomst
A81: REGNSKABSSAMMENDRAG - MEGAGARTNERIER MED OVER 20.000 KVM.
A84: BEREGNEDE NØGLETAL
C86: Gennemsnit pr. gartneri | G86: Forskel
G87: (i %)
C88: =+C15 -> o/20.000 | D88: =+D15 -> Best prac | E88: =+E15 -> 2018
A91: Afkastningsgrad | C91: =+C39*100/C63 -> 5.962804608 | D91: =+D39*100/D63 -> 13.66742597 | E91: =+E39*100/E63 -> 
A92: Overskudsgrad - EBIT-margin | C92: =+C39*100/C19 -> 4.793572625 | D92: =+D39*100/D19 -> 10.49752603 | E92: =+E39*100/E19 -> 
A93: Aktivernes omsætningshast. | C93: =+C19/C63 -> 1.24391661 | D93: =+D19/D63 -> 1.301966381 | E93: =+E19/E63 -> 
A94: Dækningsgrad | C94: =+C30*100/C19 -> 23.77617665 | D94: =+D30*100/D19 -> 26.67291355 | E94: =+E30*100/E19 -> 
A95: Nulpunktsomsætning (t.kr.) | C95: =+(-C32-C37-C41)*100/C94 -> 41427.37624 | D95: =+(-D32-D37-D41)*100/D94 -> 18416.81071 | E95: =+(-E32-E37-E41)*100/E94 ->  | G95: =+(E95-D95)/D95 -> 
A96: Sikkerhedsmargin | C96: =+(+C19-((-C32-C37-C41)*100/+C94))*100/C19 -> 15.58962933 | D96: =+(+D19-((-D32-D37-D41)*100/+D94))*100/D19 -> 36.32050401 | E96: =+(+E19-((-E32-E37-E41)*100/+E94))*100/E19 -> 
A97: Kapacitetsgrad | C97: =+C30/(-C32-C37-C41) -> 1.184688554 | D97: =+D30/(-D32-D37-D41) -> 1.570364188 | E97: =+E30/(-E32-E37-E41) -> 
A98: Forrentning af primær drift | C98: =+C43*100/+C71 -> 4.610723456 | D98: =+D43*100/+D71 -> 12.6131074 | E98: =+E43*100/+E71 -> 
A99: Egenkapitalens forrentning | C99: =IF(C66<0,C43*100/-C66,C43*100/C66) -> 13.04347826 | D99: =IF(D66<0,D43*100/-D66,D43*100/D66) -> 25.31602107 | E99: =IF(E66<0,E43*100/-E66,E43*100/E66) -> 
A100: Fremmedkapitalens forrentning | C100: =-C41*100/(+C68+C69) -> 2.188194164 | D100: =-D41*100/(+D68+D69) -> 2.236504102 | E100: =-E41*100/(+E68+E69) -> 
A101: Likviditetsgrad | C101: =+C61/C69*100 -> 184.4653199 | D101: =+D61/D69*100 -> 271.9999103 | E101: =+E61/E69*100 -> 
A106: ØVRIGE OPLYSNINGER
C108: Gennemsnit pr. gartneri | G108: Forskel
G109: (i %)
C110: =+C15 -> o/20.000 | D110: =+D15 -> Best prac | E110: =+E15 -> 2018
A112: AREALOPLYSNINGER I KVM.
A113: Areal drivhuse primo | C113: 42840.30769 | D113: ='Potteplanter 10.-20.000'!D113 -> 26152.5 | E113: 0
A114: Bygget i året | C114: 0 | D114: ='Potteplanter 10.-20.000'!D114 -> 0 | E114: 0
A115: Købt areal | C115: 0 | D115: ='Potteplanter 10.-20.000'!D115 -> 0 | E115: 0
A116: Solgt eller nedrevet areal | C116: 0 | E116: 0
A118: Areal drivhuse ultimo | C118: 42840.30769 | D118: ='Potteplanter 10.-20.000'!D118 -> 26152.5 | E118: =SUM(E113:E117) -> 0 | G118: =+(E118-D118)/D118 -> -1
A120: Lejet areal | C120: 20680.30769 | D120: ='Potteplanter 10.-20.000'!D120 -> 10341.6 | E120: 0
A121: Frilandsareal (ej i årets gns.) | C121: 3307.692308 | D121: ='Potteplanter 10.-20.000'!D121 -> 4000 | E121: 0
A123: Benyttet areal brutto i gns. | C123: 59970.61538 | D123: ='Potteplanter 10.-20.000'!D123 -> 35219.1 | E123: =SUM(E118:E121) -> 0 | G123: =+(E123-D123)/D123 -> -1
A125: LØNOPLYSNINGER
A126: Timer lønnet medhjælp | C126: 70829.23077 | D126: ='Potteplanter 10.-20.000'!D126 -> 34721.9 | E126: 0 | G126: =+(E126-D126)/D126 -> -1
A127: Timer lønnet medhjælp pr. kvm. | C127: 1.181065599 | D127: 0.92 | E127: =+E126/E123 ->  | G127: =+(E127-D127)/D127 -> 
A128: Gennemsnitlig kostpris pr. time | C128: 212.4275071 | D128: ='Potteplanter 10.-20.000'!D128 -> 207.3676844 | E128: =+(-E24+E47-E50)*1000/E126 ->  | G128: =+(E128-D128)/D128 -> 
A130: INVESTERINGSOPLYSNING
A131: Investering i driftsbygninger | C131: 1210.769231 | D131: ='Potteplanter 10.-20.000'!D131 -> 129.7777778 | E131: 0 | G131: =+(E131-D131)/D131 -> -1
A132: Investering i driftsmateriel m.v. | C132: 547.3846154 | D132: ='Potteplanter 10.-20.000'!D132 -> 303.1 | E132: 0 | G132: =+(E132-D132)/D132 -> -1
A134: Investering i alt (t.kr.) | C134: 1758.153846 | D134: ='Potteplanter 10.-20.000'!D134 -> 432.8777778 | E134: =SUM(E131:E133) -> 0 | G134: =+(E134-D134)/D134 -> -1
A149: PK Revision Rugårdsvej 46C 5000 Odense C Telefon 65 48 73 00 www.pkrevision.dk

Sheet Andre
A6: Gartner Blomst
A8: REGNSKABSSAMMENDRAG - ANDRE GARTNERIER
A11: RESULTATOPGØRELSE
C13: Gennemsnit pr. gartneri | G13: Forskel | M13: Gennemsnit pr. kvm.
C14: (I 1.000 DKK) | G14: (i %) | I14: Index | M14: (DKK)
C15: 2017 | D15: 2018 | E15: Egne | I15: =+C15 -> 2017 | J15: =+D15 -> 2018 | K15: =+E15 -> Egne | M15: =+C15 -> 2017 | N15: =+D15 -> 2018 | O15: =+E15 -> Egne
A17: Areal i gns. | M17: =+C124 -> 28183.33333 | N17: =+D124 -> 27514.28571 | O17: =+E124 -> 0
A19: OMSÆTNING | C19: 34067 | D19: 27604.71429 | E19: 0 | G19: =+(E19-D19)/D19 -> -1 | I19: =+C19*100/C19 -> 100 | J19: =+D19*100/D19 -> 100 | K19: =+E19*100/E19 ->  | M19: =+C19*1000/M$17 -> 1208.764045 | N19: 1003.286604
A20: Salgsomkostninger | C20: -6021 | D20: -5395.285714 | E20: 0 | G20: =+(E20-D20)/D20 -> -1 | I20: =+C20*100/C$19 -> -17.67399536 | J20: =+D20*100/D$19 -> -19.54479825 | K20: =+E20*100/E$19 ->  | M20: -213.6369012 | N20: -196.0903427
A22: NETTOOMSÆTNING | C22: 28046 | D22: 22209.42857 | E22: =SUM(E19:E21) -> 0 | G22: =IF(+D22<0,(-D22+E22)/-D22,(-D22+E22)/D22) -> -1 | I22: =SUM(I19:I21) -> 82.32600464 | J22: =SUM(J19:J21) -> 80.45520175 | K22: =SUM(K19:K21) ->  | M22: =SUM(M19:M21) -> 995.1271437 | N22: =SUM(N19:N21) -> 807.1962617 | O22: =SUM(O19:O21) -> 
A24: Personaleomkostninger | C24: -6463.833333 | D24: -5827.428571 | E24: 0 | G24: =+(E24-D24)/D24 -> -1 | I24: =+C24*100/C$19 -> -18.9738848 | J24: -21.11026584 | M24: =+C24*1000/M$17 -> -229.3494973 | N24: -211.7964694
A25: Produktionsomkostninger | C25: -12040.33333 | D25: -7849.857143 | E25: 0 | G25: =+(E25-D25)/D25 -> -1 | I25: -35.3430984 | J25: -28.43665419 | M25: -427.2146659 | N25: -285.3011423
C26: 9541.833333 | D26: 8532.142857 | E26: =SUM(E22:E25) -> 0 | G26: =IF(+D26<0,(-D26+E26)/-D26,(-D26+E26)/D26) -> -1 | I26: =SUM(I22:I25) -> 28.00902144 | J26: =SUM(J22:J25) -> 30.90828171 | K26: =SUM(K22:K25) ->  | M26: =SUM(M22:M25) -> 338.5629805 | N26: =SUM(N22:N25) -> 310.0986501 | O26: =SUM(O22:O25) -> 
A28: Energiomkostninger | C28: -2995 | D28: -2855.857143 | E28: 0 | G28: =+(E28-D28)/D28 -> -1 | I28: =+C28*100/C$19 -> -8.791499105 | J28: =+D28*100/D$19 -> -10.34554139 | K28: =+E28*100/E$19 ->  | M28: =+C28*1000/M$17 -> -106.2684802 | N28: =+D28*1000/N$17 -> -103.7954309 | O28: =+E28*1000/O$17 -> 
A30: DÆKNINGSBIDRAG | C30: 6546.833333 | D30: 5676.285714 | E30: =SUM(E26:E29) -> 0 | G30: =IF(+D30<0,(-D30+E30)/-D30,(-D30+E30)/D30) -> -1 | I30: =SUM(I26:I29) -> 19.21752233 | J30: =SUM(J26:J29) -> 20.56274032 | K30: =SUM(K26:K29) ->  | M30: =SUM(M26:M29) -> 232.2945003 | N30: =SUM(N26:N29) -> 206.3032191 | O30: =SUM(O26:O29) -> 
A32: Kapacitetsomkostninger | C32: -4051.5 | D32: -3905.428571 | E32: 0 | G32: =+(E32-D32)/D32 -> -1 | I32: =+C32*100/C$19 -> -11.89274078 | J32: =+D32*100/D$19 -> -14.14768699 | K32: =+E32*100/E$19 ->  | M32: =+C32*1000/M$17 -> -143.7551745 | N32: =+D32*1000/N$17 -> -141.9418484 | O32: =+E32*1000/O$17 -> 
A34: RES. FØR AFSKRIVNINGER
A35: - EBITDA | C35: 2495.333333 | D35: 1770.857143 | E35: =SUM(E30:E33) -> 0 | G35: =IF(+D35<0,(-D35+E35)/-D35,(-D35+E35)/D35) -> -1 | I35: =SUM(I30:I33) -> 7.324781558 | J35: =SUM(J30:J33) -> 6.415053329 | K35: =SUM(K30:K33) ->  | M35: =SUM(M30:M33) -> 88.53932584 | N35: =SUM(N30:N33) -> 64.36137072 | O35: =SUM(O30:O33) -> 
A37: Afskrivninger | C37: -1050.666667 | D37: -1224.857143 | E37: 0 | G37: =+(E37-D37)/D37 -> -1 | I37: =+C37*100/C$19 -> -3.084118551 | J37: =+D37*100/D$19 -> -4.437130304 | K37: =+E37*100/E$19 ->  | M37: =+C37*1000/M$17 -> -37.27971614 | N37: =+D37*1000/N$17 -> -44.51713396 | O37: =+E37*1000/O$17 -> 
A39: DRIFTSRESULTAT | C39: 1444.666667 | D39: 546 | E39: =SUM(E35:E38) -> 0 | G39: =IF(+D39<0,(-D39+E39)/-D39,(-D39+E39)/D39) -> -1 | I39: =SUM(I35:I38) -> 4.240663007 | J39: =SUM(J35:J38) -> 1.977923026 | K39: =SUM(K35:K38) ->  | M39: =SUM(M35:M38) -> 51.2596097 | N39: =SUM(N35:N38) -> 19.84423676 | O39: =SUM(O35:O38) -> 
A41: Finansiering, netto | C41: -391.8333333 | D41: -336.1428571 | E41: 0 | G41: =+(E41-D41)/D41 -> -1 | I41: =+C41*100/C$19 -> -1.15018444 | J41: =+D41*100/D$19 -> -1.21770091 | K41: =+E41*100/E$19 ->  | M41: =+C41*1000/M$17 -> -13.90301597 | N41: =+D41*1000/N$17 -> -12.21703011 | O41: =+E41*1000/O$17 -> 
A43: RESULTAT PRIMÆR DRIFT | C43: 1052.833333 | D43: 209.8571429 | E43: =SUM(E39:E42) -> 0 | G43: =IF(+D43<0,(-D43+E43)/-D43,(-D43+E43)/D43) -> -1 | I43: =SUM(I39:I42) -> 3.090478567 | J43: =SUM(J39:J42) -> 0.7602221153 | K43: =SUM(K39:K42) ->  | M43: =SUM(M39:M42) -> 37.35659373 | N43: =SUM(N39:N42) -> 7.627206646 | O43: =SUM(O39:O42) -> 
A45: SUPPL. OPLYSNINGER
A46: Indeholdt i kapacitetsomk.:
A47: Indirekte løn (t.kr.) | C47: 579.5 | D47: 672.2857143 | E47: 0 | G47: =+(E47-D47)/D47 -> -1 | I47: =+C47*100/C$19 -> 1.701059677 | J47: 2.435401821 | M47: =+C47*1000/M$17 -> 20.56179775 | N47: 24.43406023
A48: Reparation/vedligeholdelse | C48: 1355.333333 | D48: 1257.857143 | E48: 0 | G48: =+(E48-D48)/D48 -> -1 | I48: 3.978434653 | J48: 4.556675102 | M48: 48.08988764 | N48: 45.7165109
A50: Udgiftsført indehaverløn | C50: 328.5 | D50: 331.5714286 | E50: 0
A53: BALANCE
C55: Gennemsnit pr. gartneri | G55: Forskel | M55: Gennemsnit pr. kvm.
C56: (I 1.000 DKK) | G56: (i %) | I56: Index | M56: (DKK)
C57: =+C15 -> 2017 | D57: =+D15 -> 2018 | E57: =+E15 -> Egne | I57: =+C57 -> 2017 | J57: =+D57 -> 2018 | K57: =+E57 -> Egne | M57: =+C57 -> 2017 | N57: =+D57 -> 2018 | O57: =+E57 -> Egne
A59: AKTIVER
A60: Anlægsaktiver | C60: 9310.166667 | D60: 8971.142857 | E60: 0 | G60: =+(E60-D60)/D60 -> -1 | I60: =+C60*100/C$63 -> 44.44488646 | J60: 57.83676251 | M60: =+C60*1000/C$119 -> 321.4096663 | N60: 317.1616162
A61: Omsætningsaktiver | C61: 11637.5 | D61: 6540 | E61: 0 | G61: =+(E61-D61)/D61 -> -1 | I61: 55.55511354 | J61: 42.16323749 | M61: 401.7548907 | N61: 231.2121212
A63: AKTIVER I ALT | C63: 20947.66667 | D63: 15511.14286 | E63: =SUM(E60:E62) -> 0 | G63: =+(E63-D63)/D63 -> -1 | I63: =SUM(I60:I62) -> 100 | J63: =SUM(J60:J62) -> 100 | K63: =SUM(K60:K62) ->  | M63: =SUM(M60:M62) -> 723.164557 | N63: =SUM(N60:N62) -> 548.3737374 | O63: =SUM(O60:O62) -> 
A65: PASSIVER
A66: Egenkapital | C66: 2524.166667 | D66: 2481.142857 | E66: 0 | G66: =IF(+D66<0,(-D66+E66)/-D66,(-D66+E66)/D66) -> -1 | I66: =+C66*100/C$63 -> 12.04987031 | J66: 15.99587393 | K66: =+E66*100/E$63 ->  | M66: =+C66*1000/C$119 -> 87.14039125 | N66: 87.71717172
A67: Hensatte forpligtelser | C67: 725.1666667 | D67: 502.5714286 | E67: 0 | G67: =+(E67-D67)/D67 -> -1 | I67: 3.461801633 | J67: 3.240067049 | K67: =+E67*100/E$63 ->  | M67: 25.03452244 | N67: 17.76767677
A68: Langfristede gældsforpligtelser | C68: 5752.666667 | D68: 6033 | E68: 0 | G68: =+(E68-D68)/D68 -> -1 | I68: 27.46208806 | J68: 38.89461954 | K68: =+E68*100/E$63 ->  | M68: 198.5960875 | N68: 213.2878788
A69: Kortfristede gældsforpligtelser | C69: 11945.66667 | D69: 6494.428571 | E69: 0 | G69: =+(E69-D69)/D69 -> -1 | I69: 57.02623999 | J69: 41.86943948 | K69: =+E69*100/E$63 ->  | M69: 412.3935558 | N69: 229.6010101
A71: PASSIVER I ALT | C71: 20947.66667 | D71: 15511.14286 | E71: =SUM(E66:E70) -> 0 | G71: =+(E71-D71)/D71 -> -1 | I71: =SUM(I66:I70) -> 100 | J71: =SUM(J66:J70) -> 100 | K71: =SUM(K66:K70) ->  | M71: =SUM(M66:M70) -> 723.164557 | N71: =SUM(N66:N70) -> 548.3737374 | O71: =SUM(O66:O70) -> 
A74: PK Revision Rugårdsvej 46C 5000 Odense C Telefon 65 48 73 00 www.pkrevision.dk
A80: =+A6 -> Gartner Blomst
A82: REGNSKABSSAMMENDRAG - ANDRE GARTNERIER
A85: BEREGNEDE NØGLETAL
C87: Gennemsnit pr. gartneri | G87: Forskel
G88: (i %)
C89: =+C15 -> 2017 | D89: =+D15 -> 2018 | E89: =+E15 -> Egne
A92: Afkastningsgrad | C92: =+C39*100/C63 -> 6.896551724 | D92: =+D39*100/D63 -> 3.520050102 | E92: =+E39*100/E63 -> 
A93: Overskudsgrad - EBIT-margin | C93: =+C39*100/C19 -> 4.240663007 | D93: =+D39*100/D19 -> 1.977923026 | E93: =+E39*100/E19 -> 
A94: Aktivernes omsætningshast. | C94: =+C19/C63 -> 1.626290915 | D94: =+D19/D63 -> 1.779669915 | E94: =+E19/E63 -> 
A95: Dækningsgrad | C95: =+C30*100/C19 -> 19.21752233 | D95: =+D30*100/D19 -> 20.56274032 | E95: =+E30*100/E19 -> 
A96: Nulpunktsomsætning (t.kr.) | C96: =+(-C32-C37-C41)*100/C95 -> 28588.49286 | D96: =+(-D32-D37-D41)*100/D95 -> 26584.14436 | E96: =+(-E32-E37-E41)*100/E95 ->  | G96: =+(E96-D96)/D96 -> 
A97: Sikkerhedsmargin | C97: =+(+C19-((-C32-C37-C41)*100/+C95))*100/C19 -> 16.08156615 | D97: =+(+D19-((-D32-D37-D41)*100/+D95))*100/D19 -> 3.697085619 | E97: =+(+E19-((-E32-E37-E41)*100/+E95))*100/E19 -> 
A98: Kapacitetsgrad | C98: =+C30/(-C32-C37-C41) -> 1.191633297 | D98: =+D30/(-D32-D37-D41) -> 1.038390174 | E98: =+E30/(-E32-E37-E41) -> 
A99: Forrentning af primær drift | C99: =+C43*100/+C71 -> 5.026017218 | D99: =+D43*100/+D71 -> 1.352944427 | E99: =+E43*100/+E71 -> 
A100: Egenkapitalens forrentning | C100: =IF(C66<0,C43*100/-C66,C43*100/C66) -> 41.71013536 | D100: =IF(D66<0,D43*100/-D66,D43*100/D66) -> 8.458083832 | E100: =IF(E66<0,E43*100/-E66,E43*100/E66) -> 
A101: Fremmedkapitalens forrentning | C101: =-C41*100/(+C68+C69) -> 2.213956116 | D101: =-D41*100/(+D68+D69) -> 2.683255029 | E101: =-E41*100/(+E68+E69) -> 
A102: Likviditetsgrad | C102: =+C61/C69*100 -> 97.42026397 | D102: =+D61/D69*100 -> 100.7017004 | E102: =+E61/E69*100 -> 
A107: ØVRIGE OPLYSNINGER
C109: Gennemsnit pr. gartneri | G109: Forskel
G110: (i %)
C111: =+C15 -> 2017 | D111: =+D15 -> 2018 | E111: =+E15 -> Egne
A113: AREALOPLYSNINGER I KVM.
A114: Areal drivhuse primo | C114: 27300 | D114: 28285.71429 | E114: 0
A115: Bygget i året | C115: 1666.666667 | D115: 0 | E115: 0
A116: Købt areal | C116: 0 | D116: 0 | E116: 0
A117: Solgt eller nedrevet areal | C117: 0 | D117: 0 | E117: 0
A119: Areal drivhuse ultimo | C119: 28966.66667 | D119: 28285.71429 | E119: =SUM(E114:E118) -> 0 | G119: =+(E119-D119)/D119 -> -1
A121: Lejet areal | C121: 833.3333333 | D121: 714.2857143 | E121: 0
A122: Frilandsareal (ej i årets gns.) | C122: 18333.33333 | D122: 15714.28571 | E122: 0
A124: Benyttet areal brutto i gns. | C124: 28183.33333 | D124: 27514.28571 | E124: 0 | G124: =+(E124-D124)/D124 -> -1
A126: LØNOPLYSNINGER
A127: Timer lønnet medhjælp | C127: 42772.16667 | D127: 27680.28571 | E127: 0 | G127: =+(E127-D127)/D127 -> -1
A128: Timer lønnet medhjælp pr. kvm. | C128: 1.517640449 | D128: 1.006033229 | E128: =+E127/E124 ->  | G128: =+(E128-D128)/D128 -> 
A129: Gennemsnitlig kostpris pr. time | C129: 156.9907222 | D129: 222.8352309 | E129: =+(-E24+E47-E50)*1000/E127 ->  | G129: =+(E129-D129)/D129 -> 
A131: INVESTERINGSOPLYSNING
A132: Investering i driftsbygninger | C132: 997 | D132: 548.5714286 | E132: 0 | G132: =+(E132-D132)/D132 -> -1
A133: Investering i driftsmateriel m.v. | C133: 2524.833333 | D133: 3073.428571 | E133: 0 | G133: =+(E133-D133)/D133 -> -1
A135: Investering i alt (t.kr.) | C135: 3521.833333 | D135: 3622 | E135: =SUM(E132:E134) -> 0 | G135: =+(E135-D135)/D135 -> -1
A150: PK Revision Rugårdsvej 46C 5000 Odense C Telefon 65 48 73 00 www.pkrevision.dk

Sheet Alle
A6: Gartner Blomst
A8: REGNSKABSSAMMENDRAG - ALLE GARTNERIER
A11: RESULTATOPGØRELSE
C13: Gennemsnit pr. gartneri | G13: Forskel | M13: Gennemsnit pr. kvm.
C14: (I 1.000 DKK) | G14: (i %) | I14: Index | M14: (DKK)
C15: 2017 | D15: 2018 | E15: Egne | I15: =+C15 -> 2017 | J15: =+D15 -> 2018 | K15: =+E15 -> Egne | M15: =+C15 -> 2017 | N15: =+D15 -> 2018 | O15: =+E15 -> Egne
A17: Areal i gns. | M17: =+C124 -> 31506.63889 | N17: =+D124 -> 30620.41667 | O17: =+E124 -> 0
A19: OMSÆTNING | C19: 26485.13889 | D19: 24941.19444 | E19: 0 | G19: =+(E19-D19)/D19 -> -1 | I19: =+C19*100/C19 -> 100 | J19: =+D19*100/D19 -> 100 | K19: =+E19*100/E19 ->  | M19: =+C19*1000/M$17 -> 840.6208921 | N19: 814.5282514
A20: Salgsomkostninger | C20: -2740.444444 | D20: -2831.916667 | E20: 0 | G20: =+(E20-D20)/D20 -> -1 | I20: =+C20*100/C$19 -> -10.34710241 | J20: =+D20*100/D$19 -> -11.35437468 | K20: =+E20*100/E$19 ->  | M20: -86.97990459 | N20: -92.48458953
A22: NETTOOMSÆTNING | C22: 23744.69444 | D22: 22109.27778 | E22: =SUM(E19:E21) -> 0 | G22: =IF(+D22<0,(-D22+E22)/-D22,(-D22+E22)/D22) -> -1 | I22: =SUM(I19:I21) -> 89.65289759 | J22: =SUM(J19:J21) -> 88.64562532 | K22: =SUM(K19:K21) ->  | M22: =SUM(M19:M21) -> 753.6409875 | N22: =SUM(N19:N21) -> 722.0436619 | O22: =SUM(O19:O21) -> 
A24: Personaleomkostninger | C24: -6439.972222 | D24: -6316.027778 | E24: 0 | G24: =+(E24-D24)/D24 -> -1 | I24: =+C24*100/C$19 -> -24.31541798 | J24: -25.32367803 | M24: =+C24*1000/M$17 -> -204.4004835 | N24: -206.2685118
A25: Produktionsomkostninger | C25: -7853.75 | D25: -7339.055556 | E25: 0 | G25: =+(E25-D25)/D25 -> -1 | I25: -29.65342199 | J25: -29.42543739 | M25: -249.2728605 | N25: -239.6785006
C26: 9450.972222 | D26: 8454.194444 | E26: =SUM(E22:E25) -> 0 | G26: =IF(+D26<0,(-D26+E26)/-D26,(-D26+E26)/D26) -> -1 | I26: =SUM(I22:I25) -> 35.68405762 | J26: =SUM(J22:J25) -> 33.8965099 | K26: =SUM(K22:K25) ->  | M26: =SUM(M22:M25) -> 299.9676435 | N26: =SUM(N22:N25) -> 276.0966494 | O26: =SUM(O22:O25) -> 
A28: Energiomkostninger | C28: -2728.5 | D28: -2648.055556 | E28: 0 | G28: =+(E28-D28)/D28 -> -1 | I28: =+C28*100/C$19 -> -10.30200374 | J28: =+D28*100/D$19 -> -10.61719623 | K28: =+E28*100/E$19 ->  | M28: =+C28*1000/M$17 -> -86.60079578 | N28: =+D28*1000/N$17 -> -86.48006278 | O28: =+E28*1000/O$17 -> 
A30: DÆKNINGSBIDRAG | C30: 6722.472222 | D30: 5806.138889 | E30: =SUM(E26:E29) -> 0 | G30: =IF(+D30<0,(-D30+E30)/-D30,(-D30+E30)/D30) -> -1 | I30: =SUM(I26:I29) -> 25.38205388 | J30: =SUM(J26:J29) -> 23.27931367 | K30: =SUM(K26:K29) ->  | M30: =SUM(M26:M29) -> 213.3668477 | N30: =SUM(N26:N29) -> 189.6165866 | O30: =SUM(O26:O29) -> 
A32: Kapacitetsomkostninger | C32: -3833.388889 | D32: -3569.222222 | E32: 0 | G32: =+(E32-D32)/D32 -> -1 | I32: =+C32*100/C$19 -> -14.47373527 | J32: =+D32*100/D$19 -> -14.31055048 | K32: =+E32*100/E$19 ->  | M32: =+C32*1000/M$17 -> -121.6692425 | N32: =+D32*1000/N$17 -> -116.5634766 | O32: =+E32*1000/O$17 -> 
A34: RES. FØR AFSKRIVNINGER
A35: - EBITDA | C35: 2889.083333 | D35: 2236.916667 | E35: =SUM(E30:E33) -> 0 | G35: =IF(+D35<0,(-D35+E35)/-D35,(-D35+E35)/D35) -> -1 | I35: =SUM(I30:I33) -> 10.90831861 | J35: =SUM(J30:J33) -> 8.968763191 | K35: =SUM(K30:K33) ->  | M35: =SUM(M30:M33) -> 91.69760518 | N35: =SUM(N30:N33) -> 73.05310999 | O35: =SUM(O30:O33) -> 
A37: Afskrivninger | C37: -1402.472222 | D37: -1179.194444 | E37: 0 | G37: =+(E37-D37)/D37 -> -1 | I37: =+C37*100/C$19 -> -5.295317605 | J37: =+D37*100/D$19 -> -4.727898847 | K37: =+E37*100/E$19 ->  | M37: =+C37*1000/M$17 -> -44.51354609 | N37: =+D37*1000/N$17 -> -38.5100718 | O37: =+E37*1000/O$17 -> 
A39: DRIFTSRESULTAT | C39: 1486.611111 | D39: 1057.722222 | E39: =SUM(E35:E38) -> 0 | G39: =IF(+D39<0,(-D39+E39)/-D39,(-D39+E39)/D39) -> -1 | I39: =SUM(I35:I38) -> 5.613001002 | J39: =SUM(J35:J38) -> 4.240864344 | K39: =SUM(K35:K38) ->  | M39: =SUM(M35:M38) -> 47.18405909 | N39: =SUM(N35:N38) -> 34.54303819 | O39: =SUM(O35:O38) -> 
A41: Finansiering, netto | C41: -395.3611111 | D41: -282.5555556 | E41: 0 | G41: =+(E41-D41)/D41 -> -1 | I41: =+C41*100/C$19 -> -1.492765859 | J41: =+D41*100/D$19 -> -1.132887024 | K41: =+E41*100/E$19 ->  | M41: =+C41*1000/M$17 -> -12.54850168 | N41: =+D41*1000/N$17 -> -9.227684869 | O41: =+E41*1000/O$17 -> 
A43: RESULTAT PRIMÆR DRIFT | C43: 1091.25 | D43: 775.1666667 | E43: =SUM(E39:E42) -> 0 | G43: =IF(+D43<0,(-D43+E43)/-D43,(-D43+E43)/D43) -> -1 | I43: =SUM(I39:I42) -> 4.120235142 | J43: =SUM(J39:J42) -> 3.10797732 | K43: =SUM(K39:K42) ->  | M43: =SUM(M39:M42) -> 34.63555741 | N43: =SUM(N39:N42) -> 25.31535332 | O43: =SUM(O39:O42) -> 
A45: SUPPL. OPLYSNINGER
A46: Indeholdt i kapacitetsomk.:
A47: Indirekte løn (t.kr.) | C47: 1329.166667 | D47: 1154.166667 | E47: 0 | G47: =+(E47-D47)/D47 -> -1 | I47: =+C47*100/C$19 -> 5.01853765 | J47: 4.627551697 | M47: =+C47*1000/M$17 -> 42.18687596 | N47: 37.69271592
A48: Reparation/vedligeholdelse | C48: 1024.055556 | D48: 1088.028571 | E48: 0 | G48: =+(E48-D48)/D48 -> -1 | I48: 3.866528923 | J48: 4.362375562 | M48: 32.50284993 | N48: 35.53278139
A50: Udgiftsført indehaverløn | C50: 351 | D50: 352.3055556 | E50: 0
A53: BALANCE
C55: Gennemsnit pr. gartneri | G55: Forskel | M55: Gennemsnit pr. kvm.
C56: (I 1.000 DKK) | G56: (i %) | I56: Index | M56: (DKK)
C57: =+C15 -> 2017 | D57: =+D15 -> 2018 | E57: =+E15 -> Egne | I57: =+C57 -> 2017 | J57: =+D57 -> 2018 | K57: =+E57 -> Egne | M57: =+C57 -> 2017 | N57: =+D57 -> 2018 | O57: =+E57 -> Egne
A59: AKTIVER
A60: Anlægsaktiver | C60: 13206.16667 | D60: 9744.777778 | E60: 0 | G60: =+(E60-D60)/D60 -> -1 | I60: =+C60*100/C$63 -> 55.12119958 | J60: 50.28971504 | M60: =+C60*1000/C$119 -> 465.9549405 | N60: 352.6360541
A61: Omsætningsaktiver | C61: 10752.25 | D61: 9632.5 | E61: 0 | G61: =+(E61-D61)/D61 -> -1 | I61: 44.87880042 | J61: 49.71028496 | M61: 379.3730714 | N61: 348.5730376
A63: AKTIVER I ALT | C63: 23958.41667 | D63: 19377.27778 | E63: =SUM(E60:E62) -> 0 | G63: =+(E63-D63)/D63 -> -1 | I63: =SUM(I60:I62) -> 100 | J63: =SUM(J60:J62) -> 100 | K63: =SUM(K60:K62) ->  | M63: =SUM(M60:M62) -> 845.3280119 | N63: =SUM(N60:N62) -> 701.2090917 | O63: =SUM(O60:O62) -> 
A65: PASSIVER
A66: Egenkapital | C66: 7798.722222 | D66: 6570.777778 | E66: 0 | G66: =IF(+D66<0,(-D66+E66)/-D66,(-D66+E66)/D66) -> -1 | I66: =+C66*100/C$63 -> 32.55107518 | J66: 33.90970524 | K66: =+E66*100/E$63 ->  | M66: =+C66*1000/C$119 -> 275.1633567 | N66: 237.7779361
A67: Hensatte forpligtelser | C67: 980.75 | D67: 629.5555556 | E67: 0 | G67: =+(E67-D67)/D67 -> -1 | I67: 4.093550979 | J67: 3.248937043 | K67: =+E67*100/E$63 ->  | M67: 34.60393311 | N67: 22.78184193
A68: Langfristede gældsforpligtelser | C68: 7473.611111 | D68: 6563.666667 | E68: 0 | G68: =+(E68-D68)/D68 -> -1 | I68: 31.1940944 | J68: 33.87300704 | K68: =+E68*100/E$63 ->  | M68: 263.692418 | N68: 237.520605
A69: Kortfristede gældsforpligtelser | C69: 7705.333333 | D69: 5613.277778 | E69: 0 | G69: =+(E69-D69)/D69 -> -1 | I69: 32.16127944 | J69: 28.96835067 | K69: =+E69*100/E$63 ->  | M69: 271.8683041 | N69: 203.1287086
A71: PASSIVER I ALT | C71: 23958.41667 | D71: 19377.27778 | E71: =SUM(E66:E70) -> 0 | G71: =+(E71-D71)/D71 -> -1 | I71: =SUM(I66:I70) -> 100 | J71: =SUM(J66:J70) -> 100 | K71: =SUM(K66:K70) ->  | M71: =SUM(M66:M70) -> 845.3280119 | N71: =SUM(N66:N70) -> 701.2090917 | O71: =SUM(O66:O70) -> 
A74: PK Revision Rugårdsvej 46C 5000 Odense C Telefon 65 48 73 00 www.pkrevision.dk
A80: =+A6 -> Gartner Blomst
A82: =A8 -> REGNSKABSSAMMENDRAG - ALLE GARTNERIER
A85: BEREGNEDE NØGLETAL
C87: Gennemsnit pr. gartneri | G87: Forskel
G88: (i %)
C89: =+C15 -> 2017 | D89: =+D15 -> 2018 | E89: =+E15 -> Egne
A92: Afkastningsgrad | C92: =+C39*100/C63 -> 6.204963925 | D92: =+D39*100/D63 -> 5.458569745 | E92: =+E39*100/E63 -> 
A93: Overskudsgrad - EBIT-margin | C93: =+C39*100/C19 -> 5.613001002 | D93: =+D39*100/D19 -> 4.240864344 | E93: =+E39*100/E19 -> 
A94: Aktivernes omsætningshast. | C94: =+C19/C63 -> 1.105462822 | D94: =+D19/D63 -> 1.287136136 | E94: =+E19/E63 -> 
A95: Dækningsgrad | C95: =+C30*100/C19 -> 25.38205388 | D95: =+D30*100/D19 -> 23.27931367 | E95: =+E30*100/E19 -> 
A96: Nulpunktsomsætning (t.kr.) | C96: =+(-C32-C37-C41)*100/C95 -> 22185.84142 | D96: =+(-D32-D37-D41)*100/D95 -> 21611.34255 | E96: =+(-E32-E37-E41)*100/E95 ->  | G96: =+(E96-D96)/D96 -> 
A97: Sikkerhedsmargin | C97: =+(+C19-((-C32-C37-C41)*100/+C95))*100/C19 -> 16.23286737 | D97: =+(+D19-((-D32-D37-D41)*100/+D95))*100/D19 -> 13.35081164 | E97: =+(+E19-((-E32-E37-E41)*100/+E95))*100/E19 -> 
A98: Kapacitetsgrad | C98: =+C30/(-C32-C37-C41) -> 1.19378564 | D98: =+D30/(-D32-D37-D41) -> 1.1540789 | E98: =+E30/(-E32-E37-E41) -> 
A99: Forrentning af primær drift | C99: =+C43*100/+C71 -> 4.554766766 | D99: =+D43*100/+D71 -> 4.000389918 | E99: =+E43*100/+E71 -> 
A100: Egenkapitalens forrentning | C100: =IF(C66<0,C43*100/-C66,C43*100/C66) -> 13.99267686 | D100: =IF(D66<0,D43*100/-D66,D43*100/D66) -> 11.79718281 | E100: =IF(E66<0,E43*100/-E66,E43*100/E66) -> 
A101: Fremmedkapitalens forrentning | C101: =-C41*100/(+C68+C69) -> 2.604668016 | D101: =-D41*100/(+D68+D69) -> 2.320414262 | E101: =-E41*100/(+E68+E69) -> 
A102: Likviditetsgrad | C102: =+C61/C69*100 -> 139.5429573 | D102: =+D61/D69*100 -> 171.6020547 | E102: =+E61/E69*100 -> 
A107: ØVRIGE OPLYSNINGER
C109: Gennemsnit pr. gartneri | G109: Forskel
G110: (i %)
C111: =+C15 -> 2017 | D111: =+D15 -> 2018 | E111: =+E15 -> Egne
A113: AREALOPLYSNINGER I KVM.
A114: Areal drivhuse primo | C114: 27833.54286 | D114: 27634.09375 | E114: 0
A115: Bygget i året | C115: 277.7777778 | D115: 0 | E115: 0
A116: Købt areal | C116: 250 | D116: 0 | E116: 0
A117: Solgt eller nedrevet areal | C117: -19.16666667 | D117: 0 | E117: 0
A119: Areal drivhuse ultimo | C119: 28342.15397 | D119: 27634.09375 | E119: =SUM(E114:E118) -> 0 | G119: =+(E119-D119)/D119 -> -1
A121: Lejet areal | C121: 5427.388889 | D121: 7690.111111 | E121: 0
A122: Frilandsareal (ej i årets gns.) | C122: 7213.888889 | D122: 4436.111111 | E122: 0
A124: Benyttet areal brutto i gns. | C124: 31506.63889 | D124: 30620.41667 | E124: 0 | G124: =+(E124-D124)/D124 -> -1
A126: LØNOPLYSNINGER
A127: Timer lønnet medhjælp | C127: 38079.72222 | D127: 33296.88889 | E127: 0 | G127: =+(E127-D127)/D127 -> -1
A128: Timer lønnet medhjælp pr. kvm. | C128: 1.208625343 | D128: 1.087408093 | E128: =+E127/E124 ->  | G128: =+(E128-D128)/D128 -> 
A129: Gennemsnitlig kostpris pr. time | C129: 194.8076769 | D129: 213.770389 | E129: =+(-E24+E47-E50)*1000/E127 ->  | G129: =+(E129-D129)/D129 -> 
A131: INVESTERINGSOPLYSNING
A132: Investering i driftsbygninger | C132: 582 | D132: 544.4166667 | E132: 0 | G132: =+(E132-D132)/D132 -> -1
A133: Investering i driftsmateriel m.v. | C133: 1534 | D133: 858.3142857 | E133: 0 | G133: =+(E133-D133)/D133 -> -1
A135: Investering i alt (t.kr.) | C135: =SUM(C132:C134) -> 2116 | D135: =SUM(D132:D134) -> 1402.730952 | E135: =SUM(E132:E134) -> 0 | G135: =+(E135-D135)/D135 -> -1
A150: PK Revision Rugårdsvej 46C 5000 Odense C Telefon 65 48 73 00 www.pkrevision.dk
